Workbook

Sheet Cover
A3: Navigator
C5: =Client_Name -> SumProduct Pty Limited
C6: =Model_Name -> Model 16 - Indirect Cash Flow Statement Completed.xlsm
C14: Primary Developer: Liam Bastick
C16: General Cover Notes:
C17: Simple financial model to demonstrate dynamic arrays.
C21: Any queries, please e-mail: | G21: liam.bastick@sumproduct.com
C22: Website: | G22: www.sumproduct.com

Sheet Navigator
A1: Navigator
A2: =Model_Name -> Model 16 - Indirect Cash Flow Statement Completed.xlsm
A3: Navigator
E4: Error Checks: | G4: =Overall_Error_Check -> 0
B7: 1 | C7: Table of Contents
F9: Cover
F10: Style Guide
F11: Model Parameters
F12: General Assumptions
F13: Calculations
F14: Opening Balance Sheet
F15: Income Statement
F16: Balance Sheet
F17: Cash Flow Statement
F18: Timing
F19: Lookup
F20: Template Sheet
F21: Error Checks

Sheet Style Guide
A1: =IF(ISERROR(RIGHT(CELL("filename",A1),LEN(CELL("filename",A1))-FIND("]",CELL("filename",A1)))), "", RIGHT(CELL("filename",A1),LEN(CELL("filename",A1))-FIND("]",CELL("filename",A1)))) -> Style Guide
A2: =Model_Name -> Model 16 - Indirect Cash Flow Statement Completed.xlsm
A3: Navigator
E4: Error Checks: | I4: =Overall_Error_Check -> 0
B6: =MAX($B$5:$B5)+1 -> 1 | C6: Formatting of Headers / Dividers
C8: Description | I8: Display | K8: Style Name
C10: Sheet Title | I10: =C10 -> Sheet Title | K10: Sheet Title
C11: Model Name | I11: =C11 -> Model Name | K11: Model Name
C13: Header 1 | I13: =C13 -> Header 1 | K13: Header 1
C14: Header 2 | I14: =C14 -> Header 2 | K14: Header 2
C15: Header 3 | I15: =C15 -> Header 3 | K15: Header 3
C16: Header 4 | I16: =C16 -> Header 4 | K16: Header 4
C18: Notes | I18: =C18 -> Notes | K18: Notes
C20: Table Heading | I20: =C20 -> Table Heading | K20: Table Heading
B23: =MAX($B$5:$B22)+1 -> 2 | C23: Individual Cell Styles
C25: Description | I25: Display | K25: Style Name
C27: Assumption | I27: Assumption | K27: =C27 -> Assumption
C29: Constraint | I29: =C29 -> Constraint | K29: =C29 -> Constraint
C31: Empty | K31: =C31 -> Empty
C33: Error Check | I33: 0 | K33: =C33 -> Error Check
C35: Hyperlink | I35: Hyperlink | K35: =C35 -> Hyperlink
C37: Internal Reference | I37: =Days_in_Year -> 365 | K37: =C37 -> Internal Reference
C39: Line Calculation | I39: 77 | K39: Line Calc
C41: Line Total | I41: =I39 -> 77 | K41: =C41 -> Line Total
C43: Parameter | I43: 365 | K43: =C43 -> Parameter
C45: Range Name Description | I45: Not_Named | K45: =C45 -> Range Name Description
C47: Row Reference | I47: =ROW(C47) -> 47 | K47: Row Ref
C49: Row Summary | I49: =I41 -> 77 | K49: =C49 -> Row Summary
C51: Units | I51: A$ | K51: =C51 -> Units
C53: WIP | K53: =C53 -> WIP
B56: =MAX($B$5:$B55)+1 -> 3 | C56: Numerical Styles
C58: Description | I58: Display | K58: Style Name
C60: Comma | I60: 123456.789 | K60: =C60 -> Comma
C62: Comma [0] | I62: -123456.789 | K62: Comma [0]
C64: Currency | I64: 123456.789 | K64: Currency
C66: Currency [0] | I66: 123456.789 | K66: Currency [0]
C68: Date | I68: =TODAY() -> 2024-01-23 | K68: =C68 -> Date
C70: Date Heading | I70: =TODAY() -> 2024-01-23 | K70: =C70 -> Date Heading
C72: Numbers 0 | I72: -123456.789 | K72: =C72 -> Numbers 0
C74: Percent | I74: 0.5 | K74: =C74 -> Percent

Sheet Model Parameters
A1: =IF(ISERROR(RIGHT(CELL("filename",A1),LEN(CELL("filename",A1))-FIND("]",CELL("filename",A1)))), "", RIGHT(CELL("filename",A1),LEN(CELL("filename",A1))-FIND("]",CELL("filename",A1)))) -> Model Parameters
A2: =Model_Name -> Model 16 - Indirect Cash Flow Statement Completed.xlsm
A3: Navigator
E4: Error Checks: | I4: =Overall_Error_Check -> 0
B6: =MAX($B$5:$B5)+1 -> 1 | C6: General
C8: Key Inputs
D10: General
E12: Model Name | G12: =IF(ISERROR(OR(FIND("[",CELL("filename",A1)),FIND("]",CELL("filename",A1)))),"",MID(CELL("filename",A1),FIND("[",CELL("filename",A1))+1,FIND("]",CELL("filename",A1))-FIND("[",CELL("filename",A1))-1)) -> Model 16 - Indirect Cash Flow Statement Completed.xlsm
E13: Client Name | G13: SumProduct Pty Limited
B16: =MAX($B$5:$B15)+1 -> 2 | C16: General Range Names
C18: Technical Assumptions
E20: Days in Year | G20: 365
E21: Months in Month | G21: 1
E22: Months in Quarter | G22: 3
E23: Months in Half Yr | G23: 6
E24: Months in Year | G24: 12
E25: Quarters in Year | G25: 4
E27: Rounding Accuracy | G27: 5
E29: Very Large Number | G29: 1e+99
E30: Very Small Number | G30: 1e-08
E32: Thousand | G32: 1000
B35: =MAX($B$5:$B34)+1 -> 3 | C35: Technical assumptions
C37: Model information
E39: Start date | G39: =Model_Start_Date -> 2024-07-01
C42: Units
E44: Unit | G44: # | I44: Unit
E45: Currency | G45: US$'000 | I45: Currency
E46: Dollars | G46: $ | I46: Dollars
E47: Boolean | G47: [1,0] | I47: Boolean
E48: Percentage | G48: % | I48: Percentage
E49: No of days | G49: # Days | I49: No_of_Days
E50: Year | G50: Year | I50: Year
E51: No of years | G51: # Year(s) | I51: No_of_Years
E52: Multiplier | G52: x | I52: Multiplier
E53: Weight | G53: kg | I53: Weight
E54: Price / Weight | G54: $/kg | I54: Price_Weight
C57: Financial statement abbreviations
E59: Income Statement | G59: IS | I59: Income_Statement
E60: Balance Sheet | G60: BS | I60: Balance_Sheet
E61: Cash Flow Statement | G61: CFS | I61: Cash_Flow_Statement

Sheet General Assumptions
A1: =IF(ISERROR(RIGHT(CELL("filename",A1),LEN(CELL("filename",A1))-FIND("]",CELL("filename",A1)))), "", RIGHT(CELL("filename",A1),LEN(CELL("filename",A1))-FIND("]",CELL("filename",A1)))) -> General Assumptions
A2: =Model_Name -> Model 16 - Indirect Cash Flow Statement Completed.xlsm
A3: Navigator
B4: Error Checks: | F4: =Overall_Error_Check -> 0
J5: =_xlfn.ANCHORARRAY(Timing!J5) -> 2025-06-30 | K5: 2026-06-30 | L5: 2027-06-30 | M5: 2028-06-30 | N5: 2029-06-30
C6: =Timing!C6 -> Start Date | J6: =_xlfn.ANCHORARRAY(Timing!J6) -> 2024-07-01 | K6: 2025-07-01 | L6: 2026-07-01 | M6: 2027-07-01 | N6: 2028-07-01
C7: End Date | J7: =_xlfn.ANCHORARRAY(Timing!J7) -> 2025-06-30 | K7: 2026-06-30 | L7: 2027-06-30 | M7: 2028-06-30 | N7: 2029-06-30
C8: Number of Days | J8: =_xlfn.ANCHORARRAY(Timing!J8) -> 365 | K8: 365 | L8: 365 | M8: 366 | N8: 365
C9: Counter | J9: =_xlfn.ANCHORARRAY(Timing!J9) -> 1 | K9: 2 | L9: 3 | M9: 4 | N9: 5
B11: =MAX($B$10:$B10)+1 -> 1 | C11: =A1 -> General Assumptions
C13: Revenue and related
D15: Sales
E17: Projected sales | G17: =Unit -> # | J17: =_xlfn.ANCHORARRAY(J$9)*100 -> 100 | K17: 200 | L17: 300 | M17: 400 | N17: 500
E18: Unit price | G18: =Currency -> US$'000 | J18: 15
E19: Inflation | G19: =Percentage -> % | J19: =IF(_xlfn.ANCHORARRAY(J$9)=1,,IF((_xlfn.ANCHORARRAY(J$9)+1)/100<6%,(_xlfn.ANCHORARRAY(J$9)+1)/100,6%)) -> 0 | K19: 0.03 | L19: 0.04 | M19: 0.05 | N19: 0.06
D21: Working capital
E23: Days receivable | G23: =No._of_days -> Year | J23: =IF(_xlfn.ANCHORARRAY(J$9),60,) -> 60 | K23: 60 | L23: 60 | M23: 60 | N23: 60
C26: COGS and related
D28: COGS
E30: Gross margin (non-inventory) | G30: =Percentage -> % | J30: =IF(_xlfn.ANCHORARRAY(J$9),70%,) -> 0.7 | K30: 0.7 | L30: 0.7 | M30: 0.7 | N30: 0.7
D32: Working capital
E34: Days payable | G34: =No._of_days -> Year | J34: =IF(_xlfn.ANCHORARRAY(J$9),90,) -> 90 | K34: 90 | L34: 90 | M34: 90 | N34: 90
C37: Purchases and related
D39: Purchases
E41: Purchases | G41: =Weight -> kg | J41: 400 | K41: 775 | L41: 325 | M41: 550 | N41: 1000 | O41: 1210 | P41: 1420 | Q41: 1630 | R41: 1840 | S41: 2050 | T41: 2260 | U41: 2470 | V41: 2680 | W41: 2890 | X41: 3100 | Y41: 3310 | Z41: 3530 | AA41: 3750 | AB41: 4000 | AC41: 4000
E42: Price | G42: =Price_Weight -> $/kg | J42: =_xlfn.TAKE(IF(_xlfn.ANCHORARRAY(J$9),{3990,4750,2800,4160,5000,4569,4712,4855,4998,5141,5284,5427,5570,5713,5856,5999,6142,6285,6428,6571},),,Number_of_Periods) -> 3990 | K42: 4750 | L42: 2800 | M42: 4160 | N42: 5000
E43: Amount used per sale | G43: =Weight -> kg | J43: =IF(_xlfn.ANCHORARRAY(J$9),2,) -> 2 | K43: 2 | L43: 2 | M43: 2 | N43: 2
E44: Wastage | G44: =Percentage -> % | J44: =IF(_xlfn.ANCHORARRAY(J$9)=1,3%,IF(_xlfn.ANCHORARRAY(J$9)<4,2%,1%)) -> 0.03 | K44: 0.02 | L44: 0.02 | M44: 0.01 | N44: 0.01
I45: =Model_Start_Date-1 -> 2024-06-30
E46: Opening inventory balance | G46: =Weight -> kg | I46: 13
D48: Working capital
E50: Days payable | G50: =No._of_days -> Year | J50: =IF(_xlfn.ANCHORARRAY(J$9),30,) -> 30 | K50: 30 | L50: 30 | M50: 30 | N50: 30
C53: Opex and cash payments
C54: All expenses are assumed to be paid as they are incurred
D56: Opex
E58: Growth rates used from | G58: =Year -> Year | I58: 2027-06-30
E59: Amounts | G59: =Currency -> US$'000 | J59: =IF(_xlfn.ANCHORARRAY(J$9),55+_xlfn.ANCHORARRAY(J$9)*5,) -> 60 | K59: 65 | L59: 70 | M59: 75 | N59: 80
E60: Growth rates | G60: =Percentage -> % | J60: =IF(_xlfn.ANCHORARRAY(J$9)=1,,IF((7-_xlfn.ANCHORARRAY(J$9))/100>1%,(7-_xlfn.ANCHORARRAY(J$9))/100,1%)) -> 0 | K60: 0.05 | L60: 0.04 | M60: 0.03 | N60: 0.02
C63: Capex and related
D65: Capital expenditure
E67: Capital expenditure | G67: =Currency -> US$'000 | J67: 150 | K67: 180 | L67: 120 | M67: 90 | N67: 100 | O67: 150 | P67: 180 | Q67: 120 | R67: 90 | S67: 100 | T67: 150 | U67: 180 | V67: 120 | W67: 90 | X67: 100 | Y67: 150 | Z67: 180 | AA67: 120 | AB67: 90 | AC67: 100
D69: Accounting depreciation - straight line
E71: Remaining life of existing assets | G71: =No_of_Years -> # Year(s) | I71: 5
E72: Annual rate | G72: =Percentage -> % | I72: =IF(I71=0,,1/I71) -> 0.2
E74: Economic life of new capex | G74: =No_of_Years -> # Year(s) | I74: 4
E75: Annual rate | G75: =Percentage -> % | I75: =IF(I74=0,,1/I74) -> 0.25
C78: Debt and related
C79: Movements are assumed to occur at the end of each period
C80: Interest is assumed to be paid in the following period
D82: Debt
E84: Debt drawdowns | G84: =Currency -> US$'000 | J84: =IF(_xlfn.ANCHORARRAY(J$9)<3,20,) -> 20 | K84: 20 | L84: 0 | M84: 0 | N84: 0
E85: Debt repayments | G85: =Currency -> US$'000 | J85: 0 | K85: 0 | L85: 15 | M85: 25 | N85: 10 | O85: 5 | P85: 5 | Q85: 5 | R85: 5 | S85: 5 | T85: 5 | U85: 5 | V85: 5 | W85: 5 | X85: 5 | Y85: 5 | Z85: 5 | AA85: 5 | AB85: 5 | AC85: 5
D87: Interest
E89: Interest rate | G89: =Percentage -> % | J89: 0.06 | K89: 0.07 | L89: 0.07 | M89: 0.08 | N89: 0.08 | O89: 0.08 | P89: 0.08 | Q89: 0.08 | R89: 0.08 | S89: 0.08 | T89: 0.08 | U89: 0.08 | V89: 0.08 | W89: 0.08 | X89: 0.08 | Y89: 0.08 | Z89: 0.08 | AA89: 0.08 | AB89: 0.08 | AC89: 0.08
C92: Taxation
D94: Tax rate
E96: Tax rate | G96: =Percentage -> % | I96: 0.3
D98: Permanent differences
E100: Non-assessable revenue | G100: =Currency -> US$'000 | J100: =IF(_xlfn.ANCHORARRAY(J$9),25,) -> 25 | K100: 25 | L100: 25 | M100: 25 | N100: 25
E101: Disallowable expenses | G101: =Currency -> US$'000 | J101: 40 | K101: 16 | L101: 25 | M101: 30 | N101: 50 | O101: 42 | P101: 45 | Q101: 49 | R101: 52 | S101: 56 | T101: 59 | U101: 62 | V101: 66 | W101: 69 | X101: 73 | Y101: 76 | Z101: 79 | AA101: 83 | AB101: 86 | AC101: 90
D103: Tax depreciation (declining balance)
E105: Declining balance multiplier | G105: =Multiplier -> x | I105: 2
E107: Remaining life of tax assets | G107: =No_of_Years -> # Year(s) | I107: 5
E108: Annual rate | G108: =Percentage -> % | I108: =IF(I107=0,,$I$105/I107) -> 0.4
E110: Tax asset life of new capex | G110: =No_of_Years -> # Year(s) | I110: 4
E111: Annual rate | G111: =Percentage -> % | I111: =IF(I110=0,,$I$105/I110) -> 0.5
D113: DTA
D114: DTAs are assumed to arise through losses carried forward
E116: DTA | G116: =Currency -> US$'000 | I116: ='Opening Balance Sheet'!$I$22 -> 75
D118: DTL
D119: DTLs are assumed to arise through depreciation timing differences
E121: DTL | G121: =Currency -> US$'000 | I121: ='Opening Balance Sheet'!$I$37 -> 25
D123: Tax payable and paid
E125: Payment delay | G125: =No_of_Years -> # Year(s) | I125: 1
C128: Ordinary equity and related
D130: Ordinary equity
E132: Equity issuances | G132: =Currency -> US$'000 | J132: 15 | K132: 25 | L132: 0 | M132: 10 | N132: 0 | O132: 0 | P132: 0 | Q132: 0 | R132: 0 | S132: 0 | T132: 0 | U132: 0 | V132: 0 | W132: 0 | X132: 0 | Y132: 0 | Z132: 0 | AA132: 0 | AB132: 0 | AC132: 0
E133: Equity buybacks | G133: =Currency -> US$'000 | J133: 0 | K133: 0 | L133: 5 | M133: 5 | N133: 20 | O133: 0 | P133: 0 | Q133: 0 | R133: 0 | S133: 0 | T133: 0 | U133: 0 | V133: 0 | W133: 0 | X133: 0 | Y133: 0 | Z133: 0 | AA133: 0 | AB133: 0 | AC133: 0
D135: Dividends
D136: Dividends are assumed to be paid in the period after they are declared
E138: Dividend payout ratio | G138: =Percentage -> % | J138: =IF(_xlfn.ANCHORARRAY(J$9)*5/100+20%<50%,_xlfn.ANCHORARRAY(J$9)*5/100+20%,50%) -> 0.25 | K138: 0.3 | L138: 0.35 | M138: 0.4 | N138: 0.45

Sheet Calculations
A1: =IF(ISERROR(RIGHT(CELL("filename",A1),LEN(CELL("filename",A1))-FIND("]",CELL("filename",A1)))), "", RIGHT(CELL("filename",A1),LEN(CELL("filename",A1))-FIND("]",CELL("filename",A1)))) -> Calculations
A2: =Model_Name -> Model 16 - Indirect Cash Flow Statement Completed.xlsm
A3: Navigator
B4: Error Checks: | F4: =Overall_Error_Check -> 0
J5: =_xlfn.ANCHORARRAY(Timing!J5) -> 2025-06-30 | K5: 2026-06-30 | L5: 2027-06-30 | M5: 2028-06-30 | N5: 2029-06-30
C6: =Timing!C6 -> Start Date | J6: =_xlfn.ANCHORARRAY(Timing!J6) -> 2024-07-01 | K6: 2025-07-01 | L6: 2026-07-01 | M6: 2027-07-01 | N6: 2028-07-01
C7: End Date | J7: =_xlfn.ANCHORARRAY(Timing!J7) -> 2025-06-30 | K7: 2026-06-30 | L7: 2027-06-30 | M7: 2028-06-30 | N7: 2029-06-30
C8: Number of Days | J8: =_xlfn.ANCHORARRAY(Timing!J8) -> 365 | K8: 365 | L8: 365 | M8: 366 | N8: 365
C9: Counter | J9: =_xlfn.ANCHORARRAY(Timing!J9) -> 1 | K9: 2 | L9: 3 | M9: 4 | N9: 5
B11: =MAX($B$10:$B10)+1 -> 1 | C11: =A1 -> Calculations
C13: ='General Assumptions'!C13 -> Revenue and related
P14: =IFERROR(_xlfn.FORMULATEXT(J14),"") -> 
D15: ='General Assumptions'!D15 -> Sales
E17: ='General Assumptions'!E17 -> Projected sales | G17: =Unit -> # | J17: =_xlfn.ANCHORARRAY('General Assumptions'!J17) -> 100 | K17: 200 | L17: 300 | M17: 400 | N17: 500 | AE17: =IFERROR(_xlfn.FORMULATEXT(J17),"") -> ='General Assumptions'!J17#
E18: ='General Assumptions'!E18 -> Unit price | G18: =Currency -> US$'000 | J18: ='General Assumptions'!J18 -> 15 | AE18: =IFERROR(_xlfn.FORMULATEXT(J18),"") -> ='General Assumptions'!J18
E19: ='General Assumptions'!E19 -> Inflation | G19: =Percentage -> % | J19: =IF(_xlfn.ANCHORARRAY('General Assumptions'!J19)="","",_xlfn.ANCHORARRAY('General Assumptions'!J19)) -> 0 | K19: 0.03 | L19: 0.04 | M19: 0.05 | N19: 0.06 | AE19: =IFERROR(_xlfn.FORMULATEXT(J19),"") -> =IF('General Assumptions'!J19#="","",'General Assumptions'!J19#)
AE20: =IFERROR(_xlfn.FORMULATEXT(J20),"") -> 
E21: Price per unit | G21: =Currency -> US$'000 | J21: =_xlfn.SCAN(J18,_xlfn.ANCHORARRAY(J19),_xlfn.LAMBDA(_xlpm.accumulator,_xlpm.percentage,_xlpm.accumulator*(1+_xlpm.percentage))) -> 15 | K21: 15.45 | L21: 16.068 | M21: 16.8714 | N21: 17.883684 | AE21: =SCAN(J18,J19#,LAMBDA(accumulator,percentage,accumulator*(1+percentage)))
E23: Revenue | G23: =Currency -> US$'000 | J23: =_xlfn.ANCHORARRAY(J17)*_xlfn.ANCHORARRAY(J21) -> 1500 | K23: 3090 | L23: 4820.4 | M23: 6748.56 | N23: 8941.842 | AE23: =J17#*J21#
D25: Working capital
E27: Days receivable | G27: =No._of_days -> Year | J27: =_xlfn.ANCHORARRAY('General Assumptions'!J23) -> 60 | K27: 60 | L27: 60 | M27: 60 | N27: 60 | AE27: ='General Assumptions'!J23#
E29: Days in period | G29: =No._of_days -> Year | J29: =_xlfn.ANCHORARRAY(J$8) -> 365 | K29: 365 | L29: 365 | M29: 366 | N29: 365 | AE29: =J$8#
E31: Closing receivables | G31: =Currency -> US$'000 | J31: =_xlfn.ANCHORARRAY(J23)*_xlfn.ANCHORARRAY(J27)/_xlfn.ANCHORARRAY(J29) -> 246.5753425 | K31: 507.9452055 | L31: 792.3945205 | M31: 1106.321311 | N31: 1469.891836 | AE31: =J23#*J27#/J29#
D33: Control account
E35: Opening receivables | G35: =Currency -> US$'000 | J35: =OFFSET(_xlfn.ANCHORARRAY(J38),,-1) -> 50 | K35: 246.5753425 | L35: 507.9452055 | M35: 792.3945205 | N35: 1106.321311 | AD35: BS | AE35: =OFFSET(J38#,,-1)
E36: Revenue | G36: =Currency -> US$'000 | J36: =_xlfn.ANCHORARRAY(J23) -> 1500 | K36: 3090 | L36: 4820.4 | M36: 6748.56 | N36: 8941.842 | AD36: IS | AE36: =J23#
E37: Cash receipts | G37: =Currency -> US$'000 | J37: =_xlfn.ANCHORARRAY(J38)-_xlfn.ANCHORARRAY(J35)-_xlfn.ANCHORARRAY(J36) -> -1303.424658 | K37: -2828.630137 | L37: -4535.950685 | M37: -6434.633209 | N37: -8578.271476 | AD37: CFS | AE37: =J38#-J35#-J36#
E38: Closing receivables | G38: =Currency -> US$'000 | I38: ='Opening Balance Sheet'!$I$15 -> 50 | J38: =_xlfn.ANCHORARRAY(J31) -> 246.5753425 | K38: 507.9452055 | L38: 792.3945205 | M38: 1106.321311 | N38: 1469.891836 | AD38: BS | AE38: =J31#
C41: COGS and related
D43: COGS
E45: Revenue | G45: =Currency -> US$'000 | H45: ="Row "&ROW(J23) -> Row 23 | J45: =_xlfn.ANCHORARRAY(J23) -> 1500 | K45: 3090 | L45: 4820.4 | M45: 6748.56 | N45: 8941.842 | AE45: =J23#
E46: Gross margin (non-inventory) | G46: =Percentage -> % | J46: =_xlfn.ANCHORARRAY('General Assumptions'!J30) -> 0.7 | K46: 0.7 | L46: 0.7 | M46: 0.7 | N46: 0.7 | AE46: ='General Assumptions'!J30#
E47: Gross profit (non-inventory) | G47: =Currency -> US$'000 | J47: =_xlfn.ANCHORARRAY(J45)*_xlfn.ANCHORARRAY(J46) -> 1050 | K47: 2163 | L47: 3374.28 | M47: 4723.992 | N47: 6259.2894 | AE47: =J45#*J46#
E49: COGS | G49: =Currency -> US$'000 | J49: =_xlfn.ANCHORARRAY(J45)-_xlfn.ANCHORARRAY(J47) -> 450 | K49: 927 | L49: 1446.12 | M49: 2024.568 | N49: 2682.5526 | AE49: =J45#-J47#
D51: Working capital
E53: ='General Assumptions'!E34 -> Days payable | G53: =No._of_days -> Year | J53: =_xlfn.ANCHORARRAY('General Assumptions'!J34) -> 90 | K53: 90 | L53: 90 | M53: 90 | N53: 90 | AE53: ='General Assumptions'!J34#
E55: Days in period | G55: =No._of_days -> Year | J55: =_xlfn.ANCHORARRAY(J$8) -> 365 | K55: 365 | L55: 365 | M55: 366 | N55: 365 | AE55: =J$8#
E57: Closing payables | G57: =Currency -> US$'000 | J57: =_xlfn.ANCHORARRAY(J49)*_xlfn.ANCHORARRAY(J53)/_xlfn.ANCHORARRAY(J55) -> 110.9589041 | K57: 228.5753425 | L57: 356.5775342 | M57: 497.8445902 | N57: 661.451326 | AE57: =J49#*J53#/J55#
D59: Control account
E61: Opening payables | G61: =Currency -> US$'000 | J61: =OFFSET(_xlfn.ANCHORARRAY(J64),,-1) -> 30 | K61: 110.9589041 | L61: 228.5753425 | M61: 356.5775342 | N61: 497.8445902 | AD61: BS | AE61: =OFFSET(J64#,,-1)
E62: COGS | G62: =Currency -> US$'000 | J62: =_xlfn.ANCHORARRAY(J49) -> 450 | K62: 927 | L62: 1446.12 | M62: 2024.568 | N62: 2682.5526 | AD62: IS | AE62: =J49#
E63: Cash payments | G63: =Currency -> US$'000 | J63: =_xlfn.ANCHORARRAY(J64)-_xlfn.ANCHORARRAY(J61)-_xlfn.ANCHORARRAY(J62) -> -369.0410959 | K63: -809.3835616 | L63: -1318.117808 | M63: -1883.300944 | N63: -2518.945864 | AD63: CFS | AE63: =J64#-J61#-J62#
E64: Closing payables | G64: =Currency -> US$'000 | I64: ='Opening Balance Sheet'!$I$28 -> 30 | J64: =_xlfn.ANCHORARRAY(J57) -> 110.9589041 | K64: 228.5753425 | L64: 356.5775342 | M64: 497.8445902 | N64: 661.451326 | AD64: BS | AE64: =J57#
C67: Purchases and related
D69: Purchases
E71: ='General Assumptions'!E41 -> Purchases | G71: =Weight -> kg | J71: =OFFSET('General Assumptions'!J41,,,,Number_of_Periods) -> 400 | K71: 775 | L71: 325 | M71: 550 | N71: 1000 | AE71: =OFFSET('General Assumptions'!J41,,,,Number_of_Periods)
E72: ='General Assumptions'!E42 -> Price | G72: =Price_Weight -> $/kg | J72: =_xlfn.ANCHORARRAY('General Assumptions'!J42) -> 3990 | K72: 4750 | L72: 2800 | M72: 4160 | N72: 5000 | AE72: ='General Assumptions'!J42#
D74: Calculations
E76: Purchases | G76: =Weight -> kg | J76: =_xlfn.ANCHORARRAY(J71) -> 400 | K76: 775 | L76: 325 | M76: 550 | N76: 1000 | AE76: =J71#
E77: Prices | G77: =Price_Weight -> $/kg | J77: =_xlfn.ANCHORARRAY(J72) -> 3990 | K77: 4750 | L77: 2800 | M77: 4160 | N77: 5000 | AE77: =J72#
E78: Purchases | G78: =Currency -> US$'000 | J78: =_xlfn.ANCHORARRAY(J76)*_xlfn.ANCHORARRAY(J77)/Thousand -> 1596 | K78: 3681.25 | L78: 910 | M78: 2288 | N78: 5000 | AE78: =J76#*J77#/Thousand
E80: Days payable | G80: =No._of_days -> Year | J80: =_xlfn.ANCHORARRAY('General Assumptions'!J50) -> 30 | K80: 30 | L80: 30 | M80: 30 | N80: 30 | AE80: ='General Assumptions'!J50#
E82: Days in period | G82: =No._of_days -> Year | J82: =_xlfn.ANCHORARRAY(J$8) -> 365 | K82: 365 | L82: 365 | M82: 366 | N82: 365 | AE82: =J$8#
E84: Closing payables | G84: =Currency -> US$'000 | J84: =_xlfn.ANCHORARRAY(J78)*_xlfn.ANCHORARRAY(J80)/_xlfn.ANCHORARRAY(J82) -> 131.1780822 | K84: 302.5684932 | L84: 74.79452055 | M84: 187.5409836 | N84: 410.9589041 | AE84: =IFERROR(_xlfn.FORMULATEXT(J84),"") -> =J78#*J80#/J82#
D86: Control account
E88: Opening payables | G88: =Currency -> US$'000 | J88: =OFFSET(_xlfn.ANCHORARRAY(J91),,-1) -> 0 | K88: 131.1780822 | L88: 302.5684932 | M88: 74.79452055 | N88: 187.5409836 | AD88: =Balance_Sheet -> BS | AE88: =OFFSET(J91#,,-1)
E89: Purchases | G89: =Currency -> US$'000 | J89: =_xlfn.ANCHORARRAY(J78) -> 1596 | K89: 3681.25 | L89: 910 | M89: 2288 | N89: 5000 | AE89: =J78#
E90: Cash payments | G90: =Currency -> US$'000 | J90: =_xlfn.ANCHORARRAY(J91)-_xlfn.ANCHORARRAY(J88)-_xlfn.ANCHORARRAY(J89) -> -1464.821918 | K90: -3509.859589 | L90: -1137.773973 | M90: -2175.253537 | N90: -4776.582079 | AD90: =Cash_Flow_Statement -> CFS | AE90: =J91#-J88#-J89#
E91: Closing payables | G91: =Currency -> US$'000 | J91: =_xlfn.ANCHORARRAY(J84) -> 131.1780822 | K91: 302.5684932 | L91: 74.79452055 | M91: 187.5409836 | N91: 410.9589041 | AD91: =Balance_Sheet -> BS | AE91: =J84#
C94: Inventory and related
D96: Referred values
E98: Purchases | G98: =Weight -> kg | H98: ="Row "&ROW(J71) -> Row 71 | J98: =_xlfn.ANCHORARRAY(J71) -> 400 | K98: 775 | L98: 325 | M98: 550 | N98: 1000 | AE98: =J71#
E99: Purchases | G99: =Currency -> US$'000 | H99: ="Row "&ROW(J78) -> Row 78 | J99: =_xlfn.ANCHORARRAY(J78) -> 1596 | K99: 3681.25 | L99: 910 | M99: 2288 | N99: 5000 | AE99: =J78#
E100: Amount used per sale | G100: =Weight -> kg | J100: =_xlfn.ANCHORARRAY('General Assumptions'!J43) -> 2 | K100: 2 | L100: 2 | M100: 2 | N100: 2 | AE100: ='General Assumptions'!J43#
E101: Wastage | G101: =Percentage -> % | J101: =_xlfn.ANCHORARRAY('General Assumptions'!J44) -> 0.03 | K101: 0.02 | L101: 0.02 | M101: 0.01 | N101: 0.01 | AE101: ='General Assumptions'!J44#
E103: Projected sales | G103: =Unit -> # | H103: ="Row "&ROW(J17) -> Row 17 | J103: =_xlfn.ANCHORARRAY(J17) -> 100 | K103: 200 | L103: 300 | M103: 400 | N103: 500 | AE103: =J17#
D105: Calculations
E107: Amount used per sale | G107: =Weight -> kg | H107: ="Row "&ROW(J100) -> Row 100 | J107: =_xlfn.ANCHORARRAY(J100) -> 2 | K107: 2 | L107: 2 | M107: 2 | N107: 2 | AE107: =J100#
E108: Projected sales | G108: =Unit -> # | H108: ="Row "&ROW(J103) -> Row 103 | J108: =_xlfn.ANCHORARRAY(J103) -> 100 | K108: 200 | L108: 300 | M108: 400 | N108: 500 | AE108: =J103#
E109: COGS | G109: =Weight -> kg | J109: =_xlfn.ANCHORARRAY(J107)*_xlfn.ANCHORARRAY(J108) -> 200 | K109: 400 | L109: 600 | M109: 800 | N109: 1000 | AE109: =J107#*J108#
E111: Inventory movement pre-wastage | G111: =Weight -> kg | I111: Opening balance | J111: =_xlfn.ANCHORARRAY(J133)+_xlfn.ANCHORARRAY(J134) -> 200 | K111: 375 | L111: -275 | M111: -250 | N111: 0 | AE111: =J133#+J134#
E112: Closing inventory balance | G112: =Weight -> kg | I112: =I136 -> 13 | J112: =_xlfn.SCAN($I$112,_xlfn.ANCHORARRAY(J$9),_xlfn.LAMBDA(_xlpm.accumulator,_xlpm.period, (_xlpm.accumulator+INDEX(_xlfn.ANCHORARRAY(J111),_xlpm.period))*(1-INDEX(_xlfn.ANCHORARRAY(J101),_xlpm.period)))) -> 206.61 | K112: 569.9778 | L112: 289.078244 | M112: 38.68746156 | N112: 38.30058694 | AE112: =SCAN($I$112,J$9#,LAMBDA(accumulator,period, (accumulator+INDEX(J111#,period))*(1-INDEX(J101#,period))))
E113: Inventory balance pre-wastage | G113: =Weight -> kg | J113: =OFFSET(_xlfn.ANCHORARRAY(J112),,-1)+_xlfn.ANCHORARRAY(J111) -> 213 | K113: 581.61 | L113: 294.9778 | M113: 39.078244 | N113: 38.68746156 | AE113: =OFFSET(J112#,,-1)+J111#
E114: Wastage | G114: =Percentage -> % | H114: ="Row "&ROW(J101) -> Row 101 | J114: =_xlfn.ANCHORARRAY(J101) -> 0.03 | K114: 0.02 | L114: 0.02 | M114: 0.01 | N114: 0.01 | AE114: =J101#
E115: Wastage | G115: =Weight -> kg | J115: =_xlfn.ANCHORARRAY(J113)*_xlfn.ANCHORARRAY(J114) -> 6.39 | K115: 11.6322 | L115: 5.899556 | M115: 0.39078244 | N115: 0.3868746156 | AE115: =J113#*J114#
E117: Inventory balance pre-COGS transfer | G117: =Weight -> kg | J117: =_xlfn.ANCHORARRAY(J132)+_xlfn.ANCHORARRAY(J133) -> 413 | K117: 981.61 | L117: 894.9778 | M117: 839.078244 | N117: 1038.687462 | AE117: =J132#+J133#
E118: Inventory balance pre-COGS transfer | G118: =Currency -> US$'000 | J118: =_xlfn.ANCHORARRAY(J140)+_xlfn.ANCHORARRAY(J141) -> 1646 | K118: 4504.688402 | L118: 3525.674642 | M118: 3426.794543 | N118: 5157.999547 | AE118: =J140#+J141#
E119: COGS | G119: =Weight -> kg | H119: ="Row "&ROW(J109) -> Row 109 | J119: =_xlfn.ANCHORARRAY(J109) -> 200 | K119: 400 | L119: 600 | M119: 800 | N119: 1000 | AE119: =J109#
E120: COGS | G120: =Currency -> US$'000 | J120: =_xlfn.ANCHORARRAY(J118)*_xlfn.ANCHORARRAY(J119)/_xlfn.ANCHORARRAY(J117) -> 797.094431 | K120: 1835.632645 | L120: 2363.639394 | M120: 3267.199041 | N120: 4965.882171 | AE120: =J118#*J119#/J117#
E122: Inventory balance pre-wastage | G122: =Weight -> kg | J122: =_xlfn.ANCHORARRAY(J117)-_xlfn.ANCHORARRAY(J119) -> 213 | K122: 581.61 | L122: 294.9778 | M122: 39.078244 | N122: 38.68746156 | AE122: =J117#-J119#
E123: Inventory balance pre-wastage | G123: =Currency -> US$'000 | J123: =_xlfn.ANCHORARRAY(J118)-_xlfn.ANCHORARRAY(J120) -> 848.905569 | K123: 2669.055757 | L123: 1162.035247 | M123: 159.5955016 | N123: 192.1173756 | AE123: =J118#-J120#
E124: Wastage | G124: =Weight -> kg | H124: ="Row "&ROW(J115) -> Row 115 | J124: =_xlfn.ANCHORARRAY(J115) -> 6.39 | K124: 11.6322 | L124: 5.899556 | M124: 0.39078244 | N124: 0.3868746156 | AE124: =J115#
E125: Wastage | G125: =Currency -> US$'000 | J125: =_xlfn.ANCHORARRAY(J123)*_xlfn.ANCHORARRAY(J124)/_xlfn.ANCHORARRAY(J122) -> 25.46716707 | K125: 53.38111514 | L125: 23.24070495 | M125: 1.595955016 | N125: 1.921173756 | AE125: =J123#*J124#/J122#
E127: Proportion used | G127: =Percentage -> % | I127: Opening balance | J127: =-(_xlfn.ANCHORARRAY(J134)+_xlfn.ANCHORARRAY(J135))/(_xlfn.ANCHORARRAY(J132)+_xlfn.ANCHORARRAY(J133)) -> 0.4997336562 | K127: 0.419343935 | L127: 0.6769995367 | M127: 0.9538929035 | N127: 0.9631259755 | AE127: =-(J134#+J135#)/(J132#+J133#)
E128: Closing inventory | G128: =Currency -> US$'000 | I128: =I144 -> 50 | J128: =_xlfn.SCAN(I128,_xlfn.ANCHORARRAY( J$9), _xlfn.LAMBDA(_xlpm.accumulator,_xlpm.period, (_xlpm.accumulator+INDEX(_xlfn.ANCHORARRAY(J99),_xlpm.period))*(1-INDEX(_xlfn.ANCHORARRAY(J127),_xlpm.period)))) -> 823.4384019 | K128: 2615.674642 | L128: 1138.794543 | M128: 157.9995466 | N128: 190.1962018 | AE128: =SCAN(I128, J$9#, LAMBDA(accumulator,period, (accumulator+INDEX(J99#,period))*(1-INDEX(J127#,period))))
D130: Inventory at hand (kg)
E132: Opening inventory | G132: =Weight -> kg | J132: =OFFSET(_xlfn.ANCHORARRAY(J136),,-1) -> 13 | K132: 206.61 | L132: 569.9778 | M132: 289.078244 | N132: 38.68746156 | AE132: =OFFSET(J136#,,-1)
E133: Purchases | G133: =Weight -> kg | J133: =_xlfn.ANCHORARRAY(J98) -> 400 | K133: 775 | L133: 325 | M133: 550 | N133: 1000 | AE133: =J98#
E134: COGS | G134: =Weight -> kg | J134: =-_xlfn.ANCHORARRAY(J109) -> -200 | K134: -400 | L134: -600 | M134: -800 | N134: -1000 | AE134: =-J109#
E135: Wastage | G135: =Weight -> kg | J135: =-_xlfn.ANCHORARRAY(J115) -> -6.39 | K135: -11.6322 | L135: -5.899556 | M135: -0.39078244 | N135: -0.3868746156 | AE135: =-J115#
E136: Closing inventory | G136: =Weight -> kg | I136: ='General Assumptions'!$I$46 -> 13 | J136: =_xlfn.SCAN(I136,_xlfn.ANCHORARRAY(J133)+_xlfn.ANCHORARRAY(J134)+_xlfn.ANCHORARRAY(J135), _xlfn.LAMBDA(_xlpm.accumulator,_xlpm.value,_xlpm.accumulator+_xlpm.value)) -> 206.61 | K136: 569.9778 | L136: 289.078244 | M136: 38.68746156 | N136: 38.30058694 | AE136: =SCAN(I136,J133#+J134#+J135#, LAMBDA(accumulator,value,accumulator+value))
D138: Inventory ($)
E140: Opening inventory | G140: =Currency -> US$'000 | J140: =OFFSET(_xlfn.ANCHORARRAY(J144),,-1) -> 50 | K140: 823.4384019 | L140: 2615.674642 | M140: 1138.794543 | N140: 157.9995466 | AD140: =Balance_Sheet -> BS | AE140: =IFERROR(_xlfn.FORMULATEXT(J140),"") -> =OFFSET(J144#,,-1)
E141: Purchases | G141: =Currency -> US$'000 | J141: =_xlfn.ANCHORARRAY(J99) -> 1596 | K141: 3681.25 | L141: 910 | M141: 2288 | N141: 5000 | AE141: =J99#
E142: COGS | G142: =Currency -> US$'000 | J142: =-_xlfn.ANCHORARRAY(J120) -> -797.094431 | K142: -1835.632645 | L142: -2363.639394 | M142: -3267.199041 | N142: -4965.882171 | AD142: =Income_Statement -> IS | AE142: =-J120#
E143: Wastage | G143: =Currency -> US$'000 | J143: =-_xlfn.ANCHORARRAY(J125) -> -25.46716707 | K143: -53.38111514 | L143: -23.24070495 | M143: -1.595955016 | N143: -1.921173756 | AD143: =Income_Statement -> IS | AE143: =-J125#
E144: Closing inventory | G144: =Currency -> US$'000 | I144: ='Opening Balance Sheet'!$I$16 -> 50 | J144: =_xlfn.ANCHORARRAY(J128) -> 823.4384019 | K144: 2615.674642 | L144: 1138.794543 | M144: 157.9995466 | N144: 190.1962018 | AD144: =Balance_Sheet -> BS | AE144: =J128#
C147: Opex and cash payments
C148: ='General Assumptions'!C54 -> All expenses are assumed to be paid as they are incurred
D150: ='General Assumptions'!D56 -> Opex
E152: ='General Assumptions'!E58 -> Growth rates used from | G152: =Year -> Year | I152: ='General Assumptions'!I58 -> 2027-06-30
E153: Growth rates flag | G153: =Boolean -> [1,0] | J153: =($I$152<=_xlfn.ANCHORARRAY(J$7))*1 -> 0 | K153: 0 | L153: 1 | M153: 1 | N153: 1 | AE153: =($I$152<=J$7#)*1
E155: ='General Assumptions'!E59 -> Amounts | G155: =Currency -> US$'000 | J155: =_xlfn.ANCHORARRAY('General Assumptions'!J59) -> 60 | K155: 65 | L155: 70 | M155: 75 | N155: 80 | AE155: ='General Assumptions'!J59#
E156: ='General Assumptions'!E60 -> Growth rates | G156: =Percentage -> % | J156: =_xlfn.ANCHORARRAY('General Assumptions'!J60) -> 0 | K156: 0.05 | L156: 0.04 | M156: 0.03 | N156: 0.02 | AE156: ='General Assumptions'!J60#
E158: =D150 -> Opex | G158: =Currency -> US$'000 | J158: =_xlfn.SCAN(1,_xlfn.ANCHORARRAY(J$9),_xlfn.LAMBDA(_xlpm.accumulator,_xlpm.period, (1-INDEX(_xlfn.ANCHORARRAY(J153),_xlpm.period))*INDEX(_xlfn.ANCHORARRAY(J155),_xlpm.period) +INDEX(_xlfn.ANCHORARRAY(J153),_xlpm.period)*_xlpm.accumulator*(1+INDEX(_xlfn.ANCHORARRAY(J156),_xlpm.period)))) -> 60 | K158: 65 | L158: 67.6 | M158: 69.628 | N158: 71.02056 | AE158: =SCAN(1,J$9#,LAMBDA(accumulator,period, (1-INDEX(J153#,period))*INDEX(J155#,period) +INDEX(J153#,period)*accumulator*(1+INDEX(J156#,period))))
D160: Working capital
E162: =E53 -> Days payable | G162: =No._of_days -> Year | J162: =IF(_xlfn.ANCHORARRAY(J$9),,) -> 0 | K162: 0 | L162: 0 | M162: 0 | N162: 0 | AE162: =IF(J$9#,,)
E164: Days in period | G164: =No._of_days -> Year | J164: =_xlfn.ANCHORARRAY(J$8) -> 365 | K164: 365 | L164: 365 | M164: 366 | N164: 365 | AE164: =J$8#
E166: Closing payables | G166: =Currency -> US$'000 | J166: =_xlfn.ANCHORARRAY(J158)*_xlfn.ANCHORARRAY(J162)/_xlfn.ANCHORARRAY(J164) -> 0 | K166: 0 | L166: 0 | M166: 0 | N166: 0 | AE166: =J158#*J162#/J164#
D168: Control account
E170: Opening payables | G170: =Currency -> US$'000 | J170: =OFFSET(_xlfn.ANCHORARRAY(J173),,-1) -> 0 | K170: 0 | L170: 0 | M170: 0 | N170: 0 | AD170: BS | AE170: =OFFSET(J173#,,-1)
E171: =D150 -> Opex | G171: =Currency -> US$'000 | J171: =_xlfn.ANCHORARRAY(J158) -> 60 | K171: 65 | L171: 67.6 | M171: 69.628 | N171: 71.02056 | AD171: IS | AE171: =J158#
E172: Cash payments | G172: =Currency -> US$'000 | J172: =_xlfn.ANCHORARRAY(J173)-_xlfn.ANCHORARRAY(J170)-_xlfn.ANCHORARRAY(J171) -> -60 | K172: -65 | L172: -67.6 | M172: -69.628 | N172: -71.02056 | AD172: CFS | AE172: =J173#-J170#-J171#
E173: Closing payables | G173: =Currency -> US$'000 | J173: =_xlfn.ANCHORARRAY(J166) -> 0 | K173: 0 | L173: 0 | M173: 0 | N173: 0 | AD173: BS | AE173: =J166#
C176: ='General Assumptions'!C63 -> Capex and related | AE176: =IFERROR(_xlfn.FORMULATEXT(J176),"") -> 
D178: ='General Assumptions'!D65 -> Capital expenditure
E180: Existing assets | G180: =Currency -> US$'000 | I180: ='Opening Balance Sheet'!$I$21 -> 450 | AE180: =IFERROR(_xlfn.FORMULATEXT(I180),"") -> ='Opening Balance Sheet'!$I$21
E181: ='General Assumptions'!E67 -> Capital expenditure | G181: =Currency -> US$'000 | J181: =OFFSET('General Assumptions'!J67,,,,MAX(_xlfn.ANCHORARRAY(J$9))) -> 150 | K181: 180 | L181: 120 | M181: 90 | N181: 100 | AE181: =IFERROR(_xlfn.FORMULATEXT(J181),"") -> =OFFSET('General Assumptions'!J67,,,,MAX(J$9#))
AE182: =IFERROR(_xlfn.FORMULATEXT(J182),"") -> 
D183: ='General Assumptions'!D69 -> Accounting depreciation - straight line | AE183: =IFERROR(_xlfn.FORMULATEXT(J183),"") -> 
AE184: =IFERROR(_xlfn.FORMULATEXT(J184),"") -> 
E185: ='General Assumptions'!E71 -> Remaining life of existing assets | G185: =No_of_Years -> # Year(s) | I185: ='General Assumptions'!I71 -> 5 | AE185: =IFERROR(_xlfn.FORMULATEXT(I185),"") -> ='General Assumptions'!I71
E186: ='General Assumptions'!E72 -> Annual rate | G186: =Percentage -> % | I186: ='General Assumptions'!I72 -> 0.2 | AE186: ='General Assumptions'!I72
E188: ='General Assumptions'!E74 -> Economic life of new capex | G188: =No_of_Years -> # Year(s) | I188: ='General Assumptions'!I74 -> 4 | AE188: ='General Assumptions'!I74
E189: ='General Assumptions'!E75 -> Annual rate | G189: =Percentage -> % | I189: ='General Assumptions'!I75 -> 0.25 | AE189: ='General Assumptions'!I75
E191: Depreciation - existing assets | G191: =Currency -> US$'000 | I191: =I180*I186 -> 90 | AE191: =I180*I186
E192: Depreciation - new assets | G192: =Currency -> US$'000 | J192: =_xlfn.ANCHORARRAY(J181)*$I$189 -> 37.5 | K192: 45 | L192: 30 | M192: 22.5 | N192: 25 | AE192: =IFERROR(_xlfn.FORMULATEXT(J192),"") -> =J181#*$I$189
E193: Aggregate depreciation - existing assets | G193: =Currency -> US$'000 | J193: =IF(_xlfn.ANCHORARRAY(J$9)>$I$185,,$I$191) -> 90 | K193: 90 | L193: 90 | M193: 90 | N193: 90 | AE193: =IF(J$9#>$I$185,,$I$191)
E194: Aggregate depreciation - new assets | G194: =Currency -> US$'000 | J194: =_xlfn.MAP(_xlfn.ANCHORARRAY(J9),_xlfn.LAMBDA(_xlpm.period, SUM(OFFSET(INDEX(_xlfn.ANCHORARRAY(J192),_xlpm.period),,,,-MIN(_xlpm.period,$I$188))))) -> 37.5 | K194: 82.5 | L194: 112.5 | M194: 135 | N194: 122.5 | AE194: =MAP(J9#,LAMBDA(period, SUM(OFFSET(INDEX(J192#,period),,,,-MIN(period,$I$188)))))
E195: Total depreciation | G195: =Currency -> US$'000 | J195: =_xlfn.ANCHORARRAY(J193)+_xlfn.ANCHORARRAY(J194) -> 127.5 | K195: 172.5 | L195: 202.5 | M195: 225 | N195: 212.5 | AE195: =J193#+J194#
D197: Control account | AE197: =IFERROR(_xlfn.FORMULATEXT(J197),"") -> 
AE198: =IFERROR(_xlfn.FORMULATEXT(J198),"") -> 
E199: Opening net book value | G199: =Currency -> US$'000 | J199: =OFFSET(_xlfn.ANCHORARRAY(J202),,-1) -> 450 | K199: 472.5 | L199: 480 | M199: 397.5 | N199: 262.5 | AD199: BS | AE199: =IFERROR(_xlfn.FORMULATEXT(J199),"") -> =OFFSET(J202#,,-1)
E200: Capital expenditure | G200: =Currency -> US$'000 | J200: =_xlfn.ANCHORARRAY(J181) -> 150 | K200: 180 | L200: 120 | M200: 90 | N200: 100 | AD200: =Cash_Flow_Statement -> CFS | AE200: =J181#
E201: Depreciation | G201: =Currency -> US$'000 | J201: =-_xlfn.ANCHORARRAY(J195) -> -127.5 | K201: -172.5 | L201: -202.5 | M201: -225 | N201: -212.5 | AD201: =Income_Statement -> IS | AE201: =-J195#
E202: Closing net book value | G202: =Currency -> US$'000 | I202: ='Opening Balance Sheet'!$I$21 -> 450 | J202: =_xlfn.SCAN(I202,_xlfn.ANCHORARRAY(J200)+_xlfn.ANCHORARRAY(J201),_xlfn.LAMBDA(_xlpm.accumulator,_xlpm.depreciation,_xlpm.accumulator+_xlpm.depreciation)) -> 472.5 | K202: 480 | L202: 397.5 | M202: 262.5 | N202: 150 | AD202: BS | AE202: =SCAN(I202,J200#+J201#,LAMBDA(accumulator,depreciation,accumulator+depreciation))
C205: ='General Assumptions'!C78 -> Debt and related | AE205: =IFERROR(_xlfn.FORMULATEXT(J205),"") -> 
C206: ='General Assumptions'!C79 -> Movements are assumed to occur at the end of each period
C207: ='General Assumptions'!C80 -> Interest is assumed to be paid in the following period
D209: ='General Assumptions'!D82 -> Debt
E211: ='General Assumptions'!E84 -> Debt drawdowns | G211: =Currency -> US$'000 | J211: =_xlfn.ANCHORARRAY('General Assumptions'!J84) -> 20 | K211: 20 | L211: 0 | M211: 0 | N211: 0 | AE211: ='General Assumptions'!J84#
E212: ='General Assumptions'!E85 -> Debt repayments | G212: =Currency -> US$'000 | J212: =OFFSET('General Assumptions'!J85,,,,MAX(_xlfn.ANCHORARRAY(J$9))) -> 0 | K212: 0 | L212: 15 | M212: 25 | N212: 10 | AE212: =OFFSET('General Assumptions'!J85,,,,MAX(J$9#))
D214: Control account
E216: Opening debt | G216: =Currency -> US$'000 | J216: =OFFSET(_xlfn.ANCHORARRAY(J219),,-1) -> 150 | K216: 170 | L216: 190 | M216: 175 | N216: 150 | AD216: BS | AE216: =OFFSET(J219#,,-1)
E217: Debt drawdowns | G217: =Currency -> US$'000 | J217: =_xlfn.ANCHORARRAY(J211) -> 20 | K217: 20 | L217: 0 | M217: 0 | N217: 0 | AD217: CFS | AE217: =J211#
E218: Debt repayments | G218: =Currency -> US$'000 | J218: =-_xlfn.ANCHORARRAY(J212) -> 0 | K218: 0 | L218: -15 | M218: -25 | N218: -10 | AD218: CFS | AE218: =-J212#
E219: Closing debt | G219: =Currency -> US$'000 | I219: ='Opening Balance Sheet'!$I$36 -> 150 | J219: =_xlfn.SCAN(I219,_xlfn.ANCHORARRAY(J217)+_xlfn.ANCHORARRAY(J218),_xlfn.LAMBDA(_xlpm.accumulator,_xlpm.movement,_xlpm.accumulator+_xlpm.movement)) -> 170 | K219: 190 | L219: 175 | M219: 150 | N219: 140 | AD219: BS | AE219: =SCAN(I219,J217#+J218#,LAMBDA(accumulator,movement,accumulator+movement))
D221: ='General Assumptions'!D87 -> Interest
E223: ='General Assumptions'!E89 -> Interest rate | G223: =Percentage -> % | J223: =OFFSET('General Assumptions'!J89,,,,MAX(_xlfn.ANCHORARRAY(J$9))) -> 0.06 | K223: 0.07 | L223: 0.07 | M223: 0.08 | N223: 0.08 | AE223: =OFFSET('General Assumptions'!J89,,,,MAX(J$9#))
E225: Opening debt | G225: =Currency -> US$'000 | H225: ="Row "&ROW(J216) -> Row 216 | J225: =_xlfn.ANCHORARRAY(J216) -> 150 | K225: 170 | L225: 190 | M225: 175 | N225: 150 | AE225: =J216#
E227: Days in period | G227: =Unit -> # | J227: =_xlfn.ANCHORARRAY(J$8) -> 365 | K227: 365 | L227: 365 | M227: 366 | N227: 365 | AE227: =J$8#
E228: Days in standard year | G228: =Unit -> # | J228: =IF(_xlfn.ANCHORARRAY(J9),Days_in_Year,) -> 365 | K228: 365 | L228: 365 | M228: 365 | N228: 365 | AE228: =IF(J9#,Days_in_Year,)
E229: Proportion of year | G229: =Percentage -> % | J229: =IF(_xlfn.ANCHORARRAY(J227)<_xlfn.ANCHORARRAY(J228),_xlfn.ANCHORARRAY(J227),_xlfn.ANCHORARRAY(J228))/_xlfn.ANCHORARRAY(J228) -> 1 | K229: 1 | L229: 1 | M229: 1 | N229: 1 | AE229: =IF(J227#<J228#,J227#,J228#)/J228#
E231: Interest | G231: =Currency -> US$'000 | J231: =_xlfn.ANCHORARRAY(J225)*_xlfn.ANCHORARRAY(J223)*_xlfn.ANCHORARRAY(J229) -> 9 | K231: 11.9 | L231: 13.3 | M231: 14 | N231: 12 | AE231: =J225#*J223#*J229#
D233: Control account
E235: Opening interest payable | G235: =Currency -> US$'000 | J235: =OFFSET(_xlfn.ANCHORARRAY(J238),,-1) -> 20 | K235: 9 | L235: 11.9 | M235: 13.3 | N235: 14 | AD235: BS | AE235: =OFFSET(J238#,,-1)
E236: Interest expense | G236: =Currency -> US$'000 | J236: =_xlfn.ANCHORARRAY(J231) -> 9 | K236: 11.9 | L236: 13.3 | M236: 14 | N236: 12 | AD236: IS | AE236: =J231#
E237: Interest paid | G237: =Currency -> US$'000 | J237: =-_xlfn.ANCHORARRAY(J235) -> -20 | K237: -9 | L237: -11.9 | M237: -13.3 | N237: -14 | AD237: CFS | AE237: =-J235#
E238: Closing interest payable | G238: =Currency -> US$'000 | I238: ='Opening Balance Sheet'!$I$29 -> 20 | J238: =_xlfn.ANCHORARRAY(J236) -> 9 | K238: 11.9 | L238: 13.3 | M238: 14 | N238: 12 | AD238: BS | AE238: =J236#
C241: Taxation | AE241: =IFERROR(_xlfn.FORMULATEXT(J241),"") -> 
D243: Permanent differences
E245: Non-assessable revenue | G245: =Currency -> US$'000 | J245: =_xlfn.ANCHORARRAY('General Assumptions'!J100) -> 25 | K245: 25 | L245: 25 | M245: 25 | N245: 25 | AE245: ='General Assumptions'!J100#
E246: Disallowable expenses | G246: =Currency -> US$'000 | J246: =OFFSET('General Assumptions'!J101,,,,Number_of_Periods) -> 40 | K246: 16 | L246: 25 | M246: 30 | N246: 50 | AE246: =OFFSET('General Assumptions'!J101,,,,Number_of_Periods)
D248: Accounting taxable profit
E250: NPBT | G250: =Currency -> US$'000 | J250: =_xlfn.ANCHORARRAY('Income Statement'!J25) -> 30.93840194 | K250: 24.58623975 | L250: 703.9999009 | M250: 1146.569004 | N250: 995.9654952 | AE250: ='Income Statement'!J25#
E251: Deduct: non-assessable revenue | G251: =Currency -> US$'000 | J251: =-_xlfn.ANCHORARRAY(J245) -> -25 | K251: -25 | L251: -25 | M251: -25 | N251: -25 | AE251: =-J245#
E252: Add: disallowable expenses | G252: =Currency -> US$'000 | J252: =_xlfn.ANCHORARRAY(J246) -> 40 | K252: 16 | L252: 25 | M252: 30 | N252: 50 | AE252: =J246#
E253: Accounting taxable profit | G253: =Currency -> US$'000 | J253: =_xlfn.ANCHORARRAY(J250)+_xlfn.ANCHORARRAY(J251)+_xlfn.ANCHORARRAY(J252) -> 45.93840194 | K253: 15.58623975 | L253: 703.9999009 | M253: 1151.569004 | N253: 1020.965495 | AE253: =J250#+J251#+J252#
E255: Tax rate | G255: =Percentage -> % | J255: =IF(_xlfn.ANCHORARRAY(J$9),'General Assumptions'!$I$96,) -> 0.3 | K255: 0.3 | L255: 0.3 | M255: 0.3 | N255: 0.3 | AE255: =IF(J$9#,'General Assumptions'!$I$96,)
E257: Tax expense / (credit) | G257: =Currency -> US$'000 | J257: =_xlfn.ANCHORARRAY(J253)*_xlfn.ANCHORARRAY(J255) -> 13.78152058 | K257: 4.675871924 | L257: 211.1999703 | M257: 345.4707012 | N257: 306.2896486 | AE257: =J253#*J255#
D259: Tax depreciation (declining balance)
E261: Capital expenditure
E262: Existing assets | G262: =Currency -> US$'000 | H262: ="Row "&ROW(J180) -> Row 180 | I262: =I180 -> 450
E263: Capital expenditure | G263: =Currency -> US$'000 | H263: ="Row "&ROW(J181) -> Row 181 | J263: =_xlfn.ANCHORARRAY(J181) -> 150 | K263: 180 | L263: 120 | M263: 90 | N263: 100 | AE263: =J181#
E265: Declining balance multiplier | G265: =Multiplier -> x | I265: ='General Assumptions'!I105 -> 2 | AE265: =IFERROR(_xlfn.FORMULATEXT(I265),"") -> ='General Assumptions'!I105
AE266: =IFERROR(_xlfn.FORMULATEXT(I266),"") -> 
E267: Remaining life of tax assets | I267: ='General Assumptions'!I107 -> 5 | AE267: ='General Assumptions'!I107
E268: Annual rate | G268: =Percentage -> % | I268: ='General Assumptions'!I108 -> 0.4 | AE268: ='General Assumptions'!I108
E270: Tax asset life of new capex | I270: ='General Assumptions'!I110 -> 4 | AE270: ='General Assumptions'!I110
E271: Annual rate | G271: =Percentage -> % | I271: ='General Assumptions'!I111 -> 0.5 | AE271: ='General Assumptions'!I111
E273: Depreciation - existing assets | G273: =Currency -> US$'000 | J273: =_xlfn.LET(_xlpm.depreciate,_xlfn.LAMBDA(_xlpm.period, _xlfn.REDUCE(0,_xlfn.SEQUENCE(,_xlpm.period),_xlfn.LAMBDA(_xlpm.accumulator,_xlpm.period,_xlpm.accumulator +($I$262-_xlpm.accumulator)*IF(_xlpm.period=$I$267,1,$I$268)))), _xlfn.MAP(_xlfn.ANCHORARRAY(J9),_xlfn.LAMBDA(_xlpm.period, IF(_xlpm.period=1,_xlpm.depreciate(_xlpm.period), _xlpm.depreciate(_xlpm.period)- _xlpm.depreciate(_xlpm.period-1))))) -> 180 | K273: 108 | L273: 64.8 | M273: 38.88 | N273: 58.32 | AE273: =LET(depreciate,LAMBDA(period, REDUCE(0,SEQUENCE(,period),LAMBDA(accumulator,period,accumulator +($I$262-accumulator)*IF(period=$I$267,1,$I$268)))), MAP(J9#,LAMBDA(period, IF(period=1,depreciate(period), depreciate(period)- depreciate(period-1)))))
E274: Depreciation - new assets | G274: =Currency -> US$'000 | J274: =_xlfn.BYCOL(_xlfn.DROP(_xlfn.REDUCE(0,_xlfn.ANCHORARRAY(J9),_xlfn.LAMBDA(_xlpm.accumulator,_xlpm.currentperiod, _xlfn.LET(_xlpm.depreciate,_xlfn.LAMBDA(_xlpm.period,_xlfn.REDUCE(0,_xlfn.SEQUENCE(,_xlpm.period), _xlfn.LAMBDA(_xlpm.accumulator,_xlpm.counter,_xlpm.accumulator +IF(_xlpm.counter<_xlpm.currentperiod,,(INDEX(_xlfn.ANCHORARRAY(J263),1,_xlpm.currentperiod)-_xlpm.accumulator) *IF(_xlpm.counter=I270+_xlpm.currentperiod-1,1,$I$271))))), _xlfn.VSTACK(_xlpm.accumulator,_xlfn.MAP(_xlfn.ANCHORARRAY(J9), _xlfn.LAMBDA(_xlpm.period, IF(_xlpm.period=1,_xlpm.depreciate(_xlpm.period),_xlpm.depreciate(_xlpm.period)-_xlpm.depreciate(_xlpm.period-1)))))))),1), _xlfn.LAMBDA(_xlpm.column,SUM(_xlpm.column))) -> 75 | K274: 127.5 | L274: 123.75 | M274: 116.25 | N274: 110 | AE274: =BYCOL(DROP(REDUCE(0,J9#,LAMBDA(accumulator,currentperiod, LET(depreciate,LAMBDA(period,REDUCE(0,SEQUENCE(,period), LAMBDA(accumulator,counter,accumulator +IF(counter<currentperiod,,(INDEX(J263#,1,currentperiod)-accumulator) *IF(counter=I270+currentperiod-1,1,$I$271))))), VSTACK(accumulator,MAP(J9#, LAMBDA(period, IF(period=1,depreciate(period),depreciate(period)-depreciate(period-1)))))))),1), LAMBDA(column,SUM(column)))
E275: Total depreciation | G275: =Currency -> US$'000 | J275: =_xlfn.ANCHORARRAY(J273)+_xlfn.ANCHORARRAY(J274) -> 255 | K275: 235.5 | L275: 188.55 | M275: 155.13 | N275: 168.32 | AE275: =J273#+J274#
D277: Accounting depreciation
E279: Accounting depreciation | G279: =Currency -> US$'000 | H279: ="Row "&ROW(J195) -> Row 195 | J279: =_xlfn.ANCHORARRAY(J195) -> 127.5 | K279: 172.5 | L279: 202.5 | M279: 225 | N279: 212.5 | AE279: =J195#
D281: Depreciation timing difference
E283: Accounting depreciation | G283: =Currency -> US$'000 | J283: =_xlfn.ANCHORARRAY(J279) -> 127.5 | K283: 172.5 | L283: 202.5 | M283: 225 | N283: 212.5 | AE283: =J279#
E284: Tax depreciation | G284: =Currency -> US$'000 | J284: =-_xlfn.ANCHORARRAY(J275) -> -255 | K284: -235.5 | L284: -188.55 | M284: -155.13 | N284: -168.32 | AE284: =-J275#
E285: Depreciation timing difference | G285: =Currency -> US$'000 | J285: =_xlfn.ANCHORARRAY(J283)+_xlfn.ANCHORARRAY(J284) -> -127.5 | K285: -63 | L285: 13.95 | M285: 69.87 | N285: 44.18 | AE285: =J283#+J284#
E287: Tax rate | G287: =Percentage -> % | J287: =IF(_xlfn.ANCHORARRAY(J$9),'General Assumptions'!$I$96,) -> 0.3 | K287: 0.3 | L287: 0.3 | M287: 0.3 | N287: 0.3 | AE287: =IF(J$9#,'General Assumptions'!$I$96,)
E289: Movement in DTLs | G289: =Currency -> US$'000 | J289: =-_xlfn.ANCHORARRAY(J285)*_xlfn.ANCHORARRAY(J287) -> 38.25 | K289: 18.9 | L289: -4.185 | M289: -20.961 | N289: -13.254 | AE289: =-J285#*J287#
E291: Opening DTLs | G291: =Currency -> US$'000 | J291: =OFFSET(_xlfn.ANCHORARRAY(J293),,-1) -> 25 | K291: 63.25 | L291: 82.15 | M291: 77.965 | N291: 57.004 | AE291: =OFFSET(J293#,,-1)
E292: Movement in DTLs | G292: =Currency -> US$'000 | J292: =_xlfn.ANCHORARRAY(J289) -> 38.25 | K292: 18.9 | L292: -4.185 | M292: -20.961 | N292: -13.254 | AE292: =J289#
E293: Closing DTLs | G293: =Currency -> US$'000 | I293: ='General Assumptions'!I121 -> 25 | J293: =_xlfn.SCAN(I293,_xlfn.ANCHORARRAY(J292),_xlfn.LAMBDA(_xlpm.accumulator,_xlpm.movement,_xlpm.accumulator+_xlpm.movement)) -> 63.25 | K293: 82.15 | L293: 77.965 | M293: 57.004 | N293: 43.75 | AD293: =Balance_Sheet -> BS | AE293: =SCAN(I293,J292#,LAMBDA(accumulator,movement,accumulator+movement))
D295: Tax payable and paid
E297: Accounting taxable profit | G297: =Currency -> US$'000 | J297: =_xlfn.ANCHORARRAY(J253) -> 45.93840194 | K297: 15.58623975 | L297: 703.9999009 | M297: 1151.569004 | N297: 1020.965495 | AE297: =J253#
E298: Depreciation timing difference | G298: =Currency -> US$'000 | J298: =_xlfn.ANCHORARRAY(J285) -> -127.5 | K298: -63 | L298: 13.95 | M298: 69.87 | N298: 44.18 | AE298: =J285#
E299: Taxable profit / (loss) before losses | G299: =Currency -> US$'000 | J299: =_xlfn.ANCHORARRAY(J297)+_xlfn.ANCHORARRAY(J298) -> -81.56159806 | K299: -47.41376025 | L299: 717.9499009 | M299: 1221.439004 | N299: 1065.145495 | AE299: =J297#+J298#
E300: Tax losses used | G300: =Currency -> US$'000 | J300: =_xlfn.ANCHORARRAY(J327) -> 0 | K300: 0 | L300: -378.9753583 | M300: 0 | N300: 0 | AE300: =J327#
E301: Taxable profit / (loss) after losses | G301: =Currency -> US$'000 | J301: =_xlfn.ANCHORARRAY(J299)+_xlfn.ANCHORARRAY(J300) -> -81.56159806 | K301: -47.41376025 | L301: 338.9745425 | M301: 1221.439004 | N301: 1065.145495 | AE301: =J299#+J300#
... 73 more rows

Sheet Opening Balance Sheet
A1: =IF(ISERROR(RIGHT(CELL("filename",A1),LEN(CELL("filename",A1))-FIND("]",CELL("filename",A1)))), "", RIGHT(CELL("filename",A1),LEN(CELL("filename",A1))-FIND("]",CELL("filename",A1)))) -> Opening Balance Sheet
A2: =Model_Name -> Model 16 - Indirect Cash Flow Statement Completed.xlsm
A3: Navigator
B4: Error Checks: | F4: =Overall_Error_Check -> 0
I5: =Model_Start_Date-1 -> 2024-06-30
C6: =Timing!C6 -> Start Date
C7: End Date
C8: Number of Days
C9: Counter
B11: =MAX($B$10:$B10)+1 -> 1 | C11: =A1 -> Opening Balance Sheet
C13: Current assets
D14: Cash | G14: =Currency -> US$'000 | I14: 2500
D15: Accounts receivable | G15: =Currency -> US$'000 | I15: 50
D16: Inventory | G16: =Currency -> US$'000 | I16: 50
D17: Other current assets | G17: =Currency -> US$'000 | I17: 10
D18: Total current assets | G18: =Currency -> US$'000 | I18: =SUM(I14:I17) -> 2610
C20: Non-current assets
D21: PP&E | G21: =Currency -> US$'000 | I21: 450
D22: Deferred tax assets | G22: =Currency -> US$'000 | I22: 75
D23: Total non-current assets | G23: =Currency -> US$'000 | I23: =SUM(I21:I22) -> 525
C25: Total assets | G25: =Currency -> US$'000 | I25: =I18+I23 -> 3135
C27: Current liabilities
D28: Accounts payable | G28: =Currency -> US$'000 | I28: 30
D29: Interest payable | G29: US$'000 | I29: 20
D30: Dividends payable | G30: US$'000 | I30: 15
D31: Tax payable | G31: US$'000 | I31: 40
D32: Other current liabilities | G32: US$'000 | I32: 10
D33: Total current liabilities | G33: US$'000 | I33: =SUM(I28:I32) -> 115
C35: Non-current liabilities
D36: Debt | G36: =Currency -> US$'000 | I36: 150
D37: Deferred tax liabilities | G37: =Currency -> US$'000 | I37: 25
D38: Total non-current liabilities | G38: =Currency -> US$'000 | I38: =SUM(I36:I37) -> 175
C40: Total liabilities | G40: =Currency -> US$'000 | I40: =I33+I38 -> 290
C42: Net assets | G42: =Currency -> US$'000 | I42: =I25-I40 -> 2845
C45: Equity
D46: Ordinary equity | G46: =Currency -> US$'000 | I46: 300
E47: Opening retained profits | G47: US$'000 | I47: =I42-SUM(I46,I48,I49) -> 2520
E48: NPAT | G48: US$'000 | I48: 25
E49: Dividends declared | G49: US$'000 | I49: 0
D50: Retained profits | G50: US$'000 | I50: =SUM(I47:I49) -> 2545
D51: Total equity | G51: US$'000 | I51: =I46+I50 -> 2845
C54: Checks
D56: PF error check | G56: [1,0] | I56: =IF(ISERROR(I42-I51),1,0) -> 0 | K56: =IFERROR(_xlfn.FORMULATEXT(HL_Op_BS_Errors),"") -> =IF(ISERROR(I42-I51),1,0)
D57: Balance check | G57: [1,0] | I57: =IF(I56<>0,0,(ROUND(I42-I51,Rounding_Accuracy)<>0)*1) -> 0 | K57: =IFERROR(_xlfn.FORMULATEXT(HL_Op_BS_Balance),"") -> =IF(I56<>0,0,(ROUND(I42-I51,Rounding_Accuracy)<>0)*1)
D58: Insolvency check | G58: [1,0] | I58: =IF(SUM(I56:I57)<>0,0,(I42<0)*1) -> 0 | K58: =IFERROR(_xlfn.FORMULATEXT(HL_Op_BS_Insolvency),"") -> =IF(SUM(I56:I57)<>0,0,(I42<0)*1)

Sheet Income Statement
A1: =IF(ISERROR(RIGHT(CELL("filename",A1),LEN(CELL("filename",A1))-FIND("]",CELL("filename",A1)))), "", RIGHT(CELL("filename",A1),LEN(CELL("filename",A1))-FIND("]",CELL("filename",A1)))) -> Income Statement
A2: =Model_Name -> Model 16 - Indirect Cash Flow Statement Completed.xlsm
A3: Navigator
B4: Error Checks: | F4: =Overall_Error_Check -> 0
J5: =_xlfn.ANCHORARRAY(Timing!J5) -> 2025-06-30 | K5: 2026-06-30 | L5: 2027-06-30 | M5: 2028-06-30 | N5: 2029-06-30
C6: Start Date | J6: =_xlfn.ANCHORARRAY(Timing!J6) -> 2024-07-01 | K6: 2025-07-01 | L6: 2026-07-01 | M6: 2027-07-01 | N6: 2028-07-01
C7: End Date | J7: =_xlfn.ANCHORARRAY(Timing!J7) -> 2025-06-30 | K7: 2026-06-30 | L7: 2027-06-30 | M7: 2028-06-30 | N7: 2029-06-30
C8: Number of Days | J8: =_xlfn.ANCHORARRAY(Timing!J8) -> 365 | K8: 365 | L8: 365 | M8: 366 | N8: 365
C9: Counter | J9: =_xlfn.ANCHORARRAY(Timing!J9) -> 1 | K9: 2 | L9: 3 | M9: 4 | N9: 5
B11: =MAX($B$10:$B10)+1 -> 1 | C11: =A1 -> Income Statement
D13: Revenue | G13: =Currency -> US$'000 | J13: =_xlfn.ANCHORARRAY(Calculations!J36) -> 1500 | K13: 3090 | L13: 4820.4 | M13: 6748.56 | N13: 8941.842 | AD13: =IFERROR(_xlfn.FORMULATEXT(J13),"") -> =Calculations!J36#
D14: COGS | G14: =Currency -> US$'000 | J14: =-_xlfn.ANCHORARRAY(Calculations!J62)+_xlfn.ANCHORARRAY(Calculations!J142) -> -1247.094431 | K14: -2762.632645 | L14: -3809.759394 | M14: -5291.767041 | N14: -7648.434771 | AD14: =-Calculations!J62#+Calculations!J142#
D15: Gross profit | G15: =Currency -> US$'000 | J15: =_xlfn.ANCHORARRAY(J13)+_xlfn.ANCHORARRAY(J14) -> 252.905569 | K15: 327.3673549 | L15: 1010.640606 | M15: 1456.792959 | N15: 1293.407229 | AD15: =J13#+J14#
D17: Wastage | G17: =Currency -> US$'000 | J17: =_xlfn.ANCHORARRAY(Calculations!J143) -> -25.46716707 | K17: -53.38111514 | L17: -23.24070495 | M17: -1.595955016 | N17: -1.921173756 | AD17: =Calculations!J143#
D18: Operating expenditure | G18: =Currency -> US$'000 | J18: =-_xlfn.ANCHORARRAY(Calculations!J171) -> -60 | K18: -65 | L18: -67.6 | M18: -69.628 | N18: -71.02056 | AD18: =-Calculations!J171#
D19: EBITDA | G19: =Currency -> US$'000 | J19: =_xlfn.ANCHORARRAY(J15)+_xlfn.ANCHORARRAY(J17)+_xlfn.ANCHORARRAY(J18) -> 167.4384019 | K19: 208.9862397 | L19: 919.7999009 | M19: 1385.569004 | N19: 1220.465495 | AD19: =J15#+J17#+J18#
D21: Depreciation | G21: =Currency -> US$'000 | J21: =_xlfn.ANCHORARRAY(Calculations!J201) -> -127.5 | K21: -172.5 | L21: -202.5 | M21: -225 | N21: -212.5 | AD21: =Calculations!J201#
D22: EBIT | G22: =Currency -> US$'000 | J22: =_xlfn.ANCHORARRAY(J19)+_xlfn.ANCHORARRAY(J21) -> 39.93840194 | K22: 36.48623975 | L22: 717.2999009 | M22: 1160.569004 | N22: 1007.965495 | AD22: =J19#+J21#
D24: Interest expense | G24: =Currency -> US$'000 | J24: =-_xlfn.ANCHORARRAY(Calculations!J236) -> -9 | K24: -11.9 | L24: -13.3 | M24: -14 | N24: -12 | AD24: =-Calculations!J236#
D25: NPBT | G25: =Currency -> US$'000 | J25: =_xlfn.ANCHORARRAY(J22)+_xlfn.ANCHORARRAY(J24) -> 30.93840194 | K25: 24.58623975 | L25: 703.9999009 | M25: 1146.569004 | N25: 995.9654952 | AD25: =J22#+J24#
D27: Tax expense | G27: =Currency -> US$'000 | J27: =-_xlfn.ANCHORARRAY(Calculations!J343) -> -13.78152058 | K27: -4.675871924 | L27: -211.1999703 | M27: -345.4707012 | N27: -306.2896486 | AD27: =-Calculations!J343#
D28: NPAT | G28: =Currency -> US$'000 | J28: =_xlfn.ANCHORARRAY(J25)+_xlfn.ANCHORARRAY(J27) -> 17.15688136 | K28: 19.91036782 | L28: 492.7999306 | M28: 801.0983029 | N28: 689.6758467 | AD28: =J25#+J27#

Sheet Balance Sheet
A1: =IF(ISERROR(RIGHT(CELL("filename",A1),LEN(CELL("filename",A1))-FIND("]",CELL("filename",A1)))), "", RIGHT(CELL("filename",A1),LEN(CELL("filename",A1))-FIND("]",CELL("filename",A1)))) -> Balance Sheet
A2: =Model_Name -> Model 16 - Indirect Cash Flow Statement Completed.xlsm
A3: Navigator
B4: Error Checks: | F4: =Overall_Error_Check -> 0
J5: =_xlfn.ANCHORARRAY(Timing!J5) -> 2025-06-30 | K5: 2026-06-30 | L5: 2027-06-30 | M5: 2028-06-30 | N5: 2029-06-30
C6: Start Date | J6: =_xlfn.ANCHORARRAY(Timing!J6) -> 2024-07-01 | K6: 2025-07-01 | L6: 2026-07-01 | M6: 2027-07-01 | N6: 2028-07-01
C7: End Date | J7: =_xlfn.ANCHORARRAY(Timing!J7) -> 2025-06-30 | K7: 2026-06-30 | L7: 2027-06-30 | M7: 2028-06-30 | N7: 2029-06-30
C8: Number of Days | J8: =_xlfn.ANCHORARRAY(Timing!J8) -> 365 | K8: 365 | L8: 365 | M8: 366 | N8: 365
C9: Counter | J9: =_xlfn.ANCHORARRAY(Timing!J9) -> 1 | K9: 2 | L9: 3 | M9: 4 | N9: 5
B11: =MAX($B$10:$B10)+1 -> 1 | C11: =A1 -> Balance Sheet
C13: Current assets
D14: Cash | G14: =Currency -> US$'000 | J14: =_xlfn.SCAN('Opening Balance Sheet'!I14,_xlfn.ANCHORARRAY('Cash Flow Statement'!J36), _xlfn.LAMBDA(_xlpm.accumulator,_xlpm.cash,_xlpm.accumulator+_xlpm.cash)) -> 1719.561644 | K14: 19.94863014 | L14: 1880.507534 | M14: 3789.485924 | N14: 4170.337874 | AD14: =IFERROR(_xlfn.FORMULATEXT(J14),"") -> =SCAN('Opening Balance Sheet'!I14,'Cash Flow Statement'!J36#, LAMBDA(accumulator,cash,accumulator+cash))
D15: Accounts receivable | G15: =Currency -> US$'000 | J15: =_xlfn.ANCHORARRAY(Calculations!J38) -> 246.5753425 | K15: 507.9452055 | L15: 792.3945205 | M15: 1106.321311 | N15: 1469.891836 | AD15: =Calculations!J38#
D16: Inventory | G16: =Currency -> US$'000 | J16: =_xlfn.ANCHORARRAY(Calculations!J144) -> 823.4384019 | K16: 2615.674642 | L16: 1138.794543 | M16: 157.9995466 | N16: 190.1962018 | AD16: =Calculations!J144#
D17: Other current assets | G17: =Currency -> US$'000 | J17: =_xlfn.ANCHORARRAY(Calculations!J397) -> 10 | K17: 10 | L17: 10 | M17: 10 | N17: 10 | AD17: =Calculations!J397#
D18: Total current assets | G18: =Currency -> US$'000 | J18: =_xlfn.ANCHORARRAY(J14)+_xlfn.ANCHORARRAY(J15)+_xlfn.ANCHORARRAY(J16)+_xlfn.ANCHORARRAY(J17) -> 2799.575388 | K18: 3153.568477 | L18: 3821.696597 | M18: 5063.806782 | N18: 5840.425911 | AD18: =J14#+J15#+J16#+J17#
C20: Non-current assets
D21: PP&E | G21: =Currency -> US$'000 | J21: =_xlfn.ANCHORARRAY(Calculations!J202) -> 472.5 | K21: 480 | L21: 397.5 | M21: 262.5 | N21: 150 | AD21: =Calculations!J202#
D22: Deferred tax assets | G22: =Currency -> US$'000 | J22: =_xlfn.ANCHORARRAY(Calculations!J338) -> 99.46847942 | K22: 113.6926075 | L22: 0 | M22: 0 | N22: 0 | AD22: =Calculations!J338#
D23: Total non-current assets | G23: =Currency -> US$'000 | J23: =_xlfn.ANCHORARRAY(J21)+_xlfn.ANCHORARRAY(J22) -> 571.9684794 | K23: 593.6926075 | L23: 397.5 | M23: 262.5 | N23: 150 | AD23: =J21#+J22#
C25: Total assets | G25: =Currency -> US$'000 | J25: =_xlfn.ANCHORARRAY(J18)+_xlfn.ANCHORARRAY(J23) -> 3371.543868 | K25: 3747.261085 | L25: 4219.196597 | M25: 5326.306782 | N25: 5990.425911 | AD25: =J18#+J23#
C27: Current liabilities
D28: Accounts payable | G28: =Currency -> US$'000 | J28: =_xlfn.ANCHORARRAY(Calculations!J64)+_xlfn.ANCHORARRAY(Calculations!J91)+_xlfn.ANCHORARRAY(Calculations!J173) -> 242.1369863 | K28: 531.1438356 | L28: 431.3720548 | M28: 685.3855738 | N28: 1072.41023 | AD28: =Calculations!J64#+Calculations!J91#+Calculations!J173#
D29: Interest payable | G29: =Currency -> US$'000 | J29: =_xlfn.ANCHORARRAY(Calculations!J238) -> 9 | K29: 11.9 | L29: 13.3 | M29: 14 | N29: 12 | AD29: =Calculations!J238#
D30: Dividends payable | G30: =Currency -> US$'000 | J30: =_xlfn.ANCHORARRAY(Calculations!J386) -> 0 | K30: 0 | L30: 172.4799757 | M30: 320.4393211 | N30: 310.354131 | AD30: =Calculations!J386#
D31: Tax payable | G31: =Currency -> US$'000 | J31: =_xlfn.ANCHORARRAY(Calculations!J347) -> 0 | K31: 0 | L31: 101.6923628 | M31: 366.4317012 | N31: 319.5436486 | AD31: =Calculations!J347#
D32: Other current liabilities | G32: =Currency -> US$'000 | J32: =_xlfn.ANCHORARRAY(Calculations!J408) -> 10 | K32: 10 | L32: 10 | M32: 10 | N32: 10 | AD32: =Calculations!J408#
D33: Total current liabilities | G33: =Currency -> US$'000 | J33: =_xlfn.ANCHORARRAY(J28)+_xlfn.ANCHORARRAY(J29)+_xlfn.ANCHORARRAY(J30)+_xlfn.ANCHORARRAY(J31)+_xlfn.ANCHORARRAY(J32) -> 261.1369863 | K33: 553.0438356 | L33: 728.8443933 | M33: 1396.256596 | N33: 1724.30801 | AD33: =J28#+J29#+J30#+J31#+J32#
C35: Non-current liabilities
D36: Debt | G36: =Currency -> US$'000 | J36: =_xlfn.ANCHORARRAY(Calculations!J219) -> 170 | K36: 190 | L36: 175 | M36: 150 | N36: 140 | AD36: =Calculations!J219#
D37: Deferred tax liabilities | G37: =Currency -> US$'000 | J37: =_xlfn.ANCHORARRAY(Calculations!J293) -> 63.25 | K37: 82.15 | L37: 77.965 | M37: 57.004 | N37: 43.75 | AD37: =Calculations!J293#
D38: Total non-current liabilities | G38: =Currency -> US$'000 | J38: =_xlfn.ANCHORARRAY(J36)+_xlfn.ANCHORARRAY(J37) -> 233.25 | K38: 272.15 | L38: 252.965 | M38: 207.004 | N38: 183.75 | AD38: =J36#+J37#
C40: Total liabilities | G40: =Currency -> US$'000 | J40: =_xlfn.ANCHORARRAY(J33)+_xlfn.ANCHORARRAY(J38) -> 494.3869863 | K40: 825.1938356 | L40: 981.8093933 | M40: 1603.260596 | N40: 1908.05801 | AD40: =J33#+J38#
C42: Net assets | G42: =Currency -> US$'000 | J42: =_xlfn.ANCHORARRAY(J25)-_xlfn.ANCHORARRAY(J40) -> 2877.156881 | K42: 2922.067249 | L42: 3237.387204 | M42: 3723.046186 | N42: 4082.367901 | AD42: =IFERROR(_xlfn.FORMULATEXT(J42),"") -> =J25#-J40#
C45: Equity
D46: Ordinary equity | G46: =Currency -> US$'000 | J46: =_xlfn.ANCHORARRAY(Calculations!J362) -> 315 | K46: 340 | L46: 335 | M46: 340 | N46: 320 | AD46: =Calculations!J362#
E47: Opening retained profits | G47: =Currency -> US$'000 | J47: =IF(_xlfn.ANCHORARRAY(J9)=1,'Opening Balance Sheet'!$I$50,OFFSET(_xlfn.ANCHORARRAY(J50),,-1)) -> 2545 | K47: 2562.156881 | L47: 2582.067249 | M47: 2902.387204 | N47: 3383.046186 | AD47: =IF(J9#=1,'Opening Balance Sheet'!$I$50,OFFSET(J50#,,-1))
E48: NPAT | G48: =Currency -> US$'000 | J48: =_xlfn.ANCHORARRAY('Income Statement'!J28) -> 17.15688136 | K48: 19.91036782 | L48: 492.7999306 | M48: 801.0983029 | N48: 689.6758467 | AD48: ='Income Statement'!J28#
E49: Dividends declared | G49: =Currency -> US$'000 | J49: =-_xlfn.ANCHORARRAY(Calculations!J384) -> 0 | K49: 0 | L49: -172.4799757 | M49: -320.4393211 | N49: -310.354131 | AD49: =-Calculations!J384#
D50: Retained profits | G50: =Currency -> US$'000 | J50: =_xlfn.SCAN('Opening Balance Sheet'!$I$50,_xlfn.ANCHORARRAY(J48)+_xlfn.ANCHORARRAY(J49), _xlfn.LAMBDA(_xlpm.accumulator,_xlpm.profits,_xlpm.accumulator+_xlpm.profits)) -> 2562.156881 | K50: 2582.067249 | L50: 2902.387204 | M50: 3383.046186 | N50: 3762.367901 | AD50: =SCAN('Opening Balance Sheet'!$I$50,J48#+J49#, LAMBDA(accumulator,profits,accumulator+profits))
C51: Total equity | G51: =Currency -> US$'000 | J51: =_xlfn.ANCHORARRAY(J46)+_xlfn.ANCHORARRAY(J50) -> 2877.156881 | K51: 2922.067249 | L51: 3237.387204 | M51: 3723.046186 | N51: 4082.367901 | AD51: =J46#+J50#
C54: Checks | AD54: =IFERROR(_xlfn.FORMULATEXT(J54),"") -> 
D56: PF error check | G56: =Boolean -> [1,0] | I56: =MAX(_xlfn.ANCHORARRAY(J56)) -> 0 | J56: =IF(ISERROR(_xlfn.ANCHORARRAY(J42)-_xlfn.ANCHORARRAY(J51)),1,0) -> 0 | K56: 0 | L56: 0 | M56: 0 | N56: 0 | AD56: =IF(ISERROR(J42#-J51#),1,0)
D57: Balance check | G57: =Boolean -> [1,0] | I57: =MAX(_xlfn.ANCHORARRAY(J57)) -> 0 | J57: =IF(_xlfn.ANCHORARRAY(J56)<>0,0,(ROUND(_xlfn.ANCHORARRAY(J42)-_xlfn.ANCHORARRAY(J51),Rounding_Accuracy)<>0)*1) -> 0 | K57: 0 | L57: 0 | M57: 0 | N57: 0 | AD57: =IF(J56#<>0,0,(ROUND(J42#-J51#,Rounding_Accuracy)<>0)*1)
D58: Insolvency check | G58: =Boolean -> [1,0] | I58: =MAX(_xlfn.ANCHORARRAY(J58)) -> 0 | J58: =IF(_xlfn.ANCHORARRAY(J56)+_xlfn.ANCHORARRAY(J57)<>0,0,(_xlfn.ANCHORARRAY(J42)<0)*1) -> 0 | K58: 0 | L58: 0 | M58: 0 | N58: 0 | AD58: =IF(J56#+J57#<>0,0,(J42#<0)*1)

Sheet Cash Flow Statement
A1: =IF(ISERROR(RIGHT(CELL("filename",A1),LEN(CELL("filename",A1))-FIND("]",CELL("filename",A1)))), "", RIGHT(CELL("filename",A1),LEN(CELL("filename",A1))-FIND("]",CELL("filename",A1)))) -> Cash Flow Statement
A2: =Model_Name -> Model 16 - Indirect Cash Flow Statement Completed.xlsm
A3: Navigator
B4: Error Checks: | G4: =Overall_Error_Check -> 0
J5: =_xlfn.ANCHORARRAY(Timing!J5) -> 2025-06-30 | K5: 2026-06-30 | L5: 2027-06-30 | M5: 2028-06-30 | N5: 2029-06-30
C6: Start Date | J6: =_xlfn.ANCHORARRAY(Timing!J6) -> 2024-07-01 | K6: 2025-07-01 | L6: 2026-07-01 | M6: 2027-07-01 | N6: 2028-07-01
C7: End Date | J7: =_xlfn.ANCHORARRAY(Timing!J7) -> 2025-06-30 | K7: 2026-06-30 | L7: 2027-06-30 | M7: 2028-06-30 | N7: 2029-06-30
C8: Number of Days | J8: =_xlfn.ANCHORARRAY(Timing!J8) -> 365 | K8: 365 | L8: 365 | M8: 366 | N8: 365
C9: Counter | J9: =_xlfn.ANCHORARRAY(Timing!J9) -> 1 | K9: 2 | L9: 3 | M9: 4 | N9: 5
B11: =MAX($B$10:$B10)+1 -> 1 | C11: =A1 -> Cash Flow Statement
C13: Direct Cash Flow Statement
D15: Operating cash flow | P15: =IFERROR(_xlfn.FORMULATEXT(J15),"") -> 
E16: Cash receipts | G16: =Currency -> US$'000 | J16: =-_xlfn.ANCHORARRAY(Calculations!J37) -> 1303.424658 | K16: 2828.630137 | L16: 4535.950685 | M16: 6434.633209 | N16: 8578.271476 | AD16: =IFERROR(_xlfn.FORMULATEXT(J16),"") -> =-Calculations!J37#
F17: Direct cash payments | G17: =Currency -> US$'000 | J17: =_xlfn.ANCHORARRAY(Calculations!J63)+_xlfn.ANCHORARRAY(Calculations!J90) -> -1833.863014 | K17: -4319.243151 | L17: -2455.891781 | M17: -4058.554481 | N17: -7295.527944 | AD17: =Calculations!J63#+Calculations!J90#
F18: Indirect cash payments | G18: =Currency -> US$'000 | J18: =_xlfn.ANCHORARRAY(Calculations!J172) -> -60 | K18: -65 | L18: -67.6 | M18: -69.628 | N18: -71.02056 | AD18: =Calculations!J172#
E19: Cash payments | G19: =Currency -> US$'000 | J19: =_xlfn.ANCHORARRAY(J17)+_xlfn.ANCHORARRAY(J18) -> -1893.863014 | K19: -4384.243151 | L19: -2523.491781 | M19: -4128.182481 | N19: -7366.548504 | AD19: =J17#+J18#
E20: Interest paid | G20: =Currency -> US$'000 | J20: =_xlfn.ANCHORARRAY(Calculations!J237) -> -20 | K20: -9 | L20: -11.9 | M20: -13.3 | N20: -14 | AD20: =Calculations!J237#
E21: Tax paid | G21: =Currency -> US$'000 | J21: =_xlfn.ANCHORARRAY(Calculations!J344) -> -40 | K21: 0 | L21: 0 | M21: -101.6923628 | N21: -366.4317012 | AD21: =Calculations!J344#
E22: Net operating cash flow | G22: =Currency -> US$'000 | J22: =_xlfn.ANCHORARRAY(J16)+_xlfn.ANCHORARRAY(J19)+_xlfn.ANCHORARRAY(J20)+_xlfn.ANCHORARRAY(J21) -> -650.4383562 | K22: -1564.613014 | L22: 2000.558904 | M22: 2191.458365 | N22: 831.291271 | AD22: =J16#+J19#+J20#+J21#
D24: Investing cash flows
E25: Purchases of non-current assets | G25: =Currency -> US$'000 | J25: =-_xlfn.ANCHORARRAY(Calculations!J200) -> -150 | K25: -180 | L25: -120 | M25: -90 | N25: -100 | AD25: =-Calculations!J200#
E26: Net investing cash flows | G26: =Currency -> US$'000 | J26: =_xlfn.ANCHORARRAY(J25) -> -150 | K26: -180 | L26: -120 | M26: -90 | N26: -100 | AD26: =J25#
D28: Financing cash flows
E29: Debt drawdowns | G29: =Currency -> US$'000 | J29: =_xlfn.ANCHORARRAY(Calculations!J217) -> 20 | K29: 20 | L29: 0 | M29: 0 | N29: 0 | AD29: =Calculations!J217#
E30: Debt repayments | G30: =Currency -> US$'000 | J30: =_xlfn.ANCHORARRAY(Calculations!J218) -> 0 | K30: 0 | L30: -15 | M30: -25 | N30: -10 | AD30: =Calculations!J218#
E31: Ordinary equity issuances | G31: =Currency -> US$'000 | J31: =_xlfn.ANCHORARRAY(Calculations!J360) -> 15 | K31: 25 | L31: 0 | M31: 10 | N31: 0 | AD31: =Calculations!J360#
E32: Ordinary equity buybacks | G32: =Currency -> US$'000 | J32: =_xlfn.ANCHORARRAY(Calculations!J361) -> 0 | K32: 0 | L32: -5 | M32: -5 | N32: -20 | AD32: =Calculations!J361#
E33: Dividends paid | G33: =Currency -> US$'000 | J33: =_xlfn.ANCHORARRAY(Calculations!J385) -> -15 | K33: 0 | L33: 0 | M33: -172.4799757 | N33: -320.4393211 | AD33: =Calculations!J385#
E34: Net financing cash flows | G34: =Currency -> US$'000 | J34: =_xlfn.ANCHORARRAY(J29)+_xlfn.ANCHORARRAY(J30)+_xlfn.ANCHORARRAY(J31)+_xlfn.ANCHORARRAY(J32)+_xlfn.ANCHORARRAY(J33) -> 20 | K34: 45 | L34: -20 | M34: -192.4799757 | N34: -350.4393211 | AD34: =J29#+J30#+J31#+J32#+J33#
D36: Net increase / (decrease) in cash held | G36: =Currency -> US$'000 | J36: =_xlfn.ANCHORARRAY(J22)+_xlfn.ANCHORARRAY(J26)+_xlfn.ANCHORARRAY(J34) -> -780.4383562 | K36: -1699.613014 | L36: 1860.558904 | M36: 1908.97839 | N36: 380.8519499 | AD36: =J22#+J26#+J34#
C39: Indirect extract
D41: Operating cash flow
E43: NPAT | G43: =Currency -> US$'000 | J43: =_xlfn.ANCHORARRAY('Income Statement'!J28) -> 17.15688136 | K43: 19.91036782 | L43: 492.7999306 | M43: 801.0983029 | N43: 689.6758467 | AD43: =IFERROR(_xlfn.FORMULATEXT(J43),"") -> ='Income Statement'!J28#
E44: Add back:
F45: Depreciation | G45: =Currency -> US$'000 | J45: =-_xlfn.ANCHORARRAY('Income Statement'!J21) -> 127.5 | K45: 172.5 | L45: 202.5 | M45: 225 | N45: 212.5 | AD45: =-'Income Statement'!J21#
F46: Interest expense | G46: =Currency -> US$'000 | J46: =-_xlfn.ANCHORARRAY('Income Statement'!J24) -> 9 | K46: 11.9 | L46: 13.3 | M46: 14 | N46: 12 | AD46: =-'Income Statement'!J24#
F47: Tax expense | G47: =Currency -> US$'000 | J47: =-_xlfn.ANCHORARRAY('Income Statement'!J27) -> 13.78152058 | K47: 4.675871924 | L47: 211.1999703 | M47: 345.4707012 | N47: 306.2896486 | AD47: =-'Income Statement'!J27#
E48: Movements in working capital:
F49: (inc) / dec in current assets | G49: =Currency -> US$'000 | J49: =-(_xlfn.ANCHORARRAY(Calculations!J36)+_xlfn.ANCHORARRAY(Calculations!J37)+_xlfn.ANCHORARRAY(Calculations!J141)+_xlfn.ANCHORARRAY(Calculations!J142)+_xlfn.ANCHORARRAY(Calculations!J143)) -> -970.0137444 | K49: -2053.606103 | L49: 1192.430784 | M49: 666.868205 | N49: -395.7671794 | AD49: =-(Calculations!J36#+Calculations!J37#+Calculations!J141#+Calculations!J142#+Calculations!J143#)
F50: inc / (dec) in current liabilities | G50: =Currency -> US$'000 | J50: =_xlfn.ANCHORARRAY(Calculations!J62)+_xlfn.ANCHORARRAY(Calculations!J63)+_xlfn.ANCHORARRAY(Calculations!J89)+_xlfn.ANCHORARRAY(Calculations!J90)+_xlfn.ANCHORARRAY(Calculations!J171)+_xlfn.ANCHORARRAY(Calculations!J172) -> 212.1369863 | K50: 289.0068493 | L50: -99.77178082 | M50: 254.013519 | N50: 387.0246564 | AD50: =Calculations!J62#+Calculations!J63#+Calculations!J89#+Calculations!J90#+Calculations!J171#+Calculations!J172#
E51: Deduct:
F52: Interest paid | G52: =Currency -> US$'000 | J52: =_xlfn.ANCHORARRAY(J20) -> -20 | K52: -9 | L52: -11.9 | M52: -13.3 | N52: -14 | AD52: =J20#
F53: Tax paid | G53: =Currency -> US$'000 | J53: =_xlfn.ANCHORARRAY(J21) -> -40 | K53: 0 | L53: 0 | M53: -101.6923628 | N53: -366.4317012 | AD53: =J21#
D55: Net operating cash flow | G55: =Currency -> US$'000 | J55: =_xlfn.ANCHORARRAY(J43)+_xlfn.ANCHORARRAY(J45)+_xlfn.ANCHORARRAY(J46)+_xlfn.ANCHORARRAY(J47)+_xlfn.ANCHORARRAY(J49)+_xlfn.ANCHORARRAY(J50)+_xlfn.ANCHORARRAY(J52)+_xlfn.ANCHORARRAY(J53) -> -650.4383562 | K55: -1564.613014 | L55: 2000.558904 | M55: 2191.458365 | N55: 831.291271 | AD55: =J43#+J45#+J46#+J47#+J49#+J50#+J52#+J53#
E58: PF error check | G58: =Boolean -> [1,0] | I58: =MIN(SUM(_xlfn.ANCHORARRAY(J58)),1) -> 0 | J58: =IF(ISERROR(_xlfn.ANCHORARRAY(J36)+_xlfn.ANCHORARRAY(J55)),1,0) -> 0 | K58: 0 | L58: 0 | M58: 0 | N58: 0 | AD58: =IF(ISERROR(J36#+J55#),1,0)
E59: Reconciliation check | G59: =Boolean -> [1,0] | I59: =MIN(SUM(_xlfn.ANCHORARRAY(J59)),1) -> 0 | J59: =IF(_xlfn.ANCHORARRAY(J58)<>0,0,(ROUND(_xlfn.ANCHORARRAY(J22)-_xlfn.ANCHORARRAY(J55),Rounding_Accuracy)<>0)*1) -> 0 | K59: 0 | L59: 0 | M59: 0 | N59: 0 | AD59: =IF(J58#<>0,0,(ROUND(J22#-J55#,Rounding_Accuracy)<>0)*1)

Sheet Timing
A1: =IF(ISERROR(RIGHT(CELL("filename",A1),LEN(CELL("filename",A1))-FIND("]",CELL("filename",A1)))), "", RIGHT(CELL("filename",A1),LEN(CELL("filename",A1))-FIND("]",CELL("filename",A1)))) -> Timing
A2: =Model_Name -> Model 16 - Indirect Cash Flow Statement Completed.xlsm
A3: Navigator
B4: Error Checks: | F4: =Overall_Error_Check -> 0
J5: =_xlfn.ANCHORARRAY(J$7) -> 2025-06-30 | K5: 2026-06-30 | L5: 2027-06-30 | M5: 2028-06-30 | N5: 2029-06-30
C6: Start Date | J6: =IF(_xlfn.ANCHORARRAY(J$9)=1,Model_Start_Date,OFFSET(_xlfn.ANCHORARRAY(J7),,-1)+1) -> 2024-07-01 | K6: 2025-07-01 | L6: 2026-07-01 | M6: 2027-07-01 | N6: 2028-07-01
C7: End Date | J7: =EOMONTH(Model_Start_Date, MOD(Periodicity+Reporting_Month_Factor -MONTH(Model_Start_Date),Periodicity)+Periodicity*(_xlfn.ANCHORARRAY(J$9)-1)) -> 2025-06-30 | K7: 2026-06-30 | L7: 2027-06-30 | M7: 2028-06-30 | N7: 2029-06-30
C8: Number of Days | J8: =_xlfn.ANCHORARRAY(J7)-_xlfn.ANCHORARRAY(J6)+1 -> 365 | K8: 365 | L8: 365 | M8: 366 | N8: 365
C9: Counter | J9: =_xlfn.SEQUENCE(1,Number_of_Periods) -> 1 | K9: 2 | L9: 3 | M9: 4 | N9: 5
B11: =MAX($B$10:$B10)+1 -> 1 | C11: Timing Assumptions
C13: Data (do not change once modelling has commenced)
D15: Number of Periods | H15: 5 | K15: Number_of_Periods
D17: Model Start Date | H17: 2024-07-01 | K17: Model_Start_Date
D19: Number of Months in a Full Period | H19: 12 | K19: Periodicity
D21: Example Reporting Month | H21: 6 | I21: ="e.g. "&TEXT(DATE(YEAR(Model_Start_Date)+IF(Example_Reporting_Month<MONTH(Model_Start_Date),1,0),Example_Reporting_Month+1,1)-1,"dd-Mmm-yy") -> e.g. 30-Jun-25 | K21: Example_Reporting_Month
D23: Reporting Month Factor | H23: =MOD(Example_Reporting_Month-1,Periodicity)+1 -> 6 | K23: Reporting_Month_Factor

Sheet Lookup
A1: =IF(ISERROR(RIGHT(CELL("filename",A1),LEN(CELL("filename",A1))-FIND("]",CELL("filename",A1)))), "", RIGHT(CELL("filename",A1),LEN(CELL("filename",A1))-FIND("]",CELL("filename",A1)))) -> Lookup
A2: =Model_Name -> Model 16 - Indirect Cash Flow Statement Completed.xlsm
A3: Navigator
B4: Error Checks: | F4: =Overall_Error_Check -> 0
B6: =MAX($B$5:$B5)+1 -> 1 | C6: =A1 -> Lookup
C8: Year Lookups
D10: LU_Future_Years
D11: =IF(_xlfn.SEQUENCE(Number_of_Periods)=1, "Actuals Throughout",TRANSPOSE(_xlfn.ANCHORARRAY(Timing!J7))) -> Actuals Throughout | F11: LU_Future_Years | G11: =_xlfn.FORMULATEXT(D11) -> =IF(SEQUENCE(Number_of_Periods)=1, "Actuals Throughout",TRANSPOSE(Timing!J7#))
D12: 2026-06-30
D13: 2027-06-30
D14: 2028-06-30
D15: 2029-06-30

Sheet Template Sheet
A1: =IF(ISERROR(RIGHT(CELL("filename",A1),LEN(CELL("filename",A1))-FIND("]",CELL("filename",A1)))), "", RIGHT(CELL("filename",A1),LEN(CELL("filename",A1))-FIND("]",CELL("filename",A1)))) -> Template Sheet
A2: =Model_Name -> Model 16 - Indirect Cash Flow Statement Completed.xlsm
A3: Navigator
E4: Error Checks: | I4: =Overall_Error_Check -> 0
B6: =MAX($B$5:$B5)+1 -> 1 | C6: First Section
C8: Heading
D10: Sub Heading

Sheet Error Checks
A1: =IF(ISERROR(RIGHT(CELL("filename",A1),LEN(CELL("filename",A1))-FIND("]",CELL("filename",A1)))), "", RIGHT(CELL("filename",A1),LEN(CELL("filename",A1))-FIND("]",CELL("filename",A1)))) -> Error Checks
A2: =Model_Name -> Model 16 - Indirect Cash Flow Statement Completed.xlsm
A3: Navigator
B4: Error Checks: | F4: =Overall_Error_Check -> 0
B6: =MAX($B$5:$B5)+1 -> 1 | C6: Error Checks
C8: Summary of Errors
D10: Assumptions
E12: Balance Sheet has no errors | I12: =HL_BS_Errors -> 0
E13: Balance Sheet balances | I13: =HL_BS_Balance -> 0
E14: Insolvency check for Balance Sheet | I14: =HL_BS_Insolvency -> 0
E15: Opening Balance Sheet has no errors | I15: =HL_Op_BS_Errors -> 0
E16: Opening Balance Sheet balances | I16: =HL_Op_BS_Balance -> 0
E17: Insolvency check for Opening Balance Sheet | I17: =HL_Op_BS_Insolvency -> 0
E18: Cash Flow Statement has no errors | I18: =HL_Cash_Flow_Statement_Error -> 0
E19: Cash Flow Statement reconciles | I19: =HL_Cash_Flow_Statement_Rec_Check -> 0
E25: =C8 -> Summary of Errors | I25: =MAX(I12:I24) -> 0
